Workbook

Sheet Instructions
A1: Diocese of Metuchen | J1: Appendix A
A2: Parish Financial Statement & Report Instructions
A3: FYE June 30, 2022
B6: General Instructions
B8: 1) | C8: All values should be reported in whole dollars.
B10: 2) | C10: Statements should be prepared on a full accrual basis of accounting.
B12: 3) | C12: Begin by working through the Schedules. As you fill them with data, the accompanying
C13: financial statements will be partially completed, as information you enter will automatically
C14: be posted to the correct places in the statements. Within the statements:
C16: - | D16: Reference | E16: The column(s) on the right hand side of each document | J16: ® | L16: Reference
D17: contains links which can be used to move between the schedules and
D18: their corresponding statements. | J18: ® | L18: Example
C20: - | D20: Purple | E20: Indicates that data will populate the cell from a schedule.
D21: The corresponding schedule is listed in the "Reference" column.
C23: - | D23: Green | E23: Indicates that data may be entered manually.
C25: - | D25: Red Triangle | E25: Indicates that there is information about the cell in a comment,
D26: which can be viewed by holding your mouse over any cell with a red triangle
D27: in the upper right hand corner.
N28: Instructions | P28: This is an example of an instructions box, which will
C29: - | D29: Instructions | F29: as well as | G29: Note | I29: boxes are | N29: guide you through the essentials of completing each section of the statement.
D30: available in the margins of each page to offer guidance and reminders | J30: ®
D31: as you complete the statement. | N31: Note | P31: This is an example of a note box, which will contain
N32: notes to draw your attention to certain items which have historically been the
C33: - | E33: Checkboxes on pages 2 and 3 of the report ask you to indicate | N33: source of errors in Parishes' reporting.
D34: a response to yes or no questions. Please check the box to indicate "yes."
B36: 4) | C36: Please do not submit paper copies of this document. When the report has been
C37: completed and reviewed, print the Cover and gather the appropriate signatures for the
C38: acknowledgements. This cover, along with any necessary supporting documents, should be
C39: scanned and emailed or submitted via mail to:
D41: The Diocese of Metuchen
D42: ATTN: Oscar Montalvo
D43: 146 Metlars Lane
D44: Piscataway, NJ 08854
B46: 5) | C46: Please attach the completed Excel document to an email, and submit it to:
D48: omontalvo@diometuchen.org
C50: If you experience a problem in transmission, please re-submit to:
D51: dioceseofmetuchen@gmail.com
B54: If you have questions or require guidance while preparing your report, please contact Oscar Montalvo
B55: at (732) 243-4555 or omontalvo@diometuchen.org for assistance.
B58: Please submit all documents to the Diocese by August 31, 2022.

Sheet Cover
B4: The Diocese of Metuchen
B5: Parish Financial Statement & Report
B7: FYE June 30, 2022
P8: Reference | R8: Instructions: | T8: When the financial statements are completed and the
C9: Name: | E9: - | R9: pastor, preparer, and two trustees have reviewed them, please complete the
R10: green shaded fields, print this cover, and gather the signatures required for
C11: Town: | E11: - | R11: the acknowledgements.
C13: Federal Tax ID#: | E13: - | R13: The signed cover should be forwarded to the Diocese by mail or email to the
R14: address in the instructions tab.
E15: Registered Catholic Families: | G15: 0 | P15: Disclosures
E17: Registered Catholics: | G17: 0
B22: I have reviewed the Parish Financial Statement & Report for the fiscal year ending June 30, 2022, and have discussed the Statement and Report with the preparer. To the best of my knowledge the statements, schedules, and any supporting documents supplied are complete and accurate.
B26: Pastor/Administrator Name | G26: Pastor/Administrator Signature | L26: Date
B31: Trustee Name | G31: Trustee Signature | L31: Date
B36: Trustee Name | G36: Trustee Signature | L36: Date
B39: I have prepared the Parish Financial Statement & Report for the fiscal year ending June 30, 2022 in accordance with the basis of accounting as set forth in the instructions, notes, and account descriptions included in this report. To the best of my knowledge the statements, schedules, and any supporting documents supplied are complete and accurate. Financial Report is due Wednesday, August 31, 2022.
B43: Preparer Name | G43: Preparer Signature | L43: Date

Sheet Position
M1: Page 1
B3: Statement of Financial Position
B4: 2022-06-30
F7: Church & | H7: School &
F8: Rectory | H8: Convent | J8: Cemetery | L8: Total | O8: Reference | Q8: Reference | S8: Reference
A9: Current Assets: | U9: Instructions | W9: This statement reports the balances of the Parish’s
B10: 100 | D10: Cash | F10: ='Sch. 1'!J26 -> 0 | H10: ='Sch. 1'!J46 -> 0 | J10: ='Sch. 1'!J58 -> 0 | L10: =SUM(F10:J10) -> 0 | O10: Sch. 1 | Q10: - | S10: - | U10: assets and liabilities on the last day of the fiscal year. It also reports “Net
B11: 101 | D11: Petty Cash | F11: 0 | H11: 0 | J11: 0 | L11: 0 | O11: - | Q11: - | S11: - | U11: Assets,” which is calculated as assets less liabilities.
B12: 102 | D12: Diocesan Investment Mgmt. Program | F12: ='Sch. 2'!O25 -> 0 | H12: ='Sch. 2'!O49 -> 0 | J12: ='Sch. 2'!O66 -> 0 | L12: =SUM(F12:J12) -> 0 | O12: Sch. 2 | Q12: - | S12: -
B13: 104 | D13: External Investments | F13: ='Sch. 2'!O24 -> 0 | H13: ='Sch. 2'!O48 -> 0 | J13: ='Sch. 2'!O65 -> 0 | L13: 0 | O13: Sch. 2 | Q13: - | S13: - | U13: Fields shaded in purple will populate information directly from their related
B14: 105 | D14: Mortgages & Loans Receivable | F14: 0 | H14: 0 | J14: 0 | L14: 0 | O14: - | Q14: - | S14: - | U14: schedules (or expense lines in the case of Accumulated Depreciation), which
B15: 107 | D15: Accounts Receivable | F15: 0 | H15: 0 | J15: 0 | L15: 0 | O15: - | Q15: - | S15: - | U15: are indicated in the reference columns.
B16: 108 | D16: Prepaid Expense | F16: 0 | H16: 0 | J16: 0 | L16: 0 | O16: - | Q16: - | S16: -
B17: 109 | D17: Scrip Inventory | F17: 0 | H17: 0 | J17: 0 | L17: =SUM(F17:J17) -> 0 | O17: - | Q17: - | S17: - | U17: The remaining line items must be manually entered on the face of the statement.
A19: Fixed Assets: | U19: Note | W19: Negative figures (apart from Accumulated Depreciation)
B20: 110 | D20: Land | F20: ='Sch. 8'!F21+'Sch. 3'!E14 -> 0 | H20: ='Sch. 8'!H21+'Sch. 3'!G14 -> 0 | J20: ='Sch. 8'!J21+'Sch. 3'!I14 -> 0 | L20: =SUM(F20:J20) -> 0 | O20: Sch. 8 | P20: + | Q20: Sch. 3 | S20: - | U20: should never be reported on the Statement of Position. This often results from
B21: 111 | D21: Buildings | F21: ='Sch. 8'!F22+'Sch. 3'!E26 -> 0 | H21: ='Sch. 8'!H22+'Sch. 3'!G26 -> 0 | J21: ='Sch. 8'!J22+'Sch. 3'!I26 -> 0 | L21: =SUM(F21:J21) -> 0 | O21: Sch. 8 | P21: + | Q21: Sch. 3 | S21: - | U21: Parishes transferring funds between units (Church, School, Cemetery) and
B22: 112 | D22: Building Improvements | F22: ='Sch. 8'!F23+'Sch. 3'!E43 -> 0 | H22: ='Sch. 8'!H23+'Sch. 3'!G43 -> 0 | J22: ='Sch. 8'!J23+'Sch. 3'!I43 -> 0 | L22: =SUM(F22:J22) -> 0 | O22: Sch. 8 | P22: + | Q22: Sch. 3 | S22: - | U22: reporting the transfer on one line.
B23: 113 | D23: Vehicles | F23: ='Sch. 8'!F24+'Sch. 3'!E58 -> 0 | H23: ='Sch. 8'!H24+'Sch. 3'!G58 -> 0 | J23: ='Sch. 8'!J24+'Sch. 3'!I58 -> 0 | L23: =SUM(F23:J23) -> 0 | O23: Sch. 8 | P23: + | Q23: Sch. 3 | S23: -
B24: 114 | D24: Furniture & Equipment | F24: ='Sch. 8'!F25+'Sch. 3'!E75 -> 0 | H24: ='Sch. 8'!H25+'Sch. 3'!G75 -> 0 | J24: ='Sch. 8'!J25+'Sch. 3'!I75 -> 0 | L24: =SUM(F24:J24) -> 0 | S24: - | U24: Any funds transferred between units must be set up as loans to be repaid. The
U25: unit making the loan records an asset on Line 105 (Mortgages & Loans
A26: Accumulated Depreciation: | U26: Receivable), while the unit receiving the loan records a liability on Line 202
B27: 115 | D27: Buildings | F27: ='Sch. 8'!F28-'Activities 3'!F43-'Sch. 3'!E28 -> 0 | H27: ='Sch. 8'!H28-'Activities 3'!H43-'Sch. 3'!G28 -> 0 | J27: ='Sch. 8'!J28-'Activities 3'!J43-'Sch. 3'!I28 -> 0 | L27: =SUM(F27:J27) -> 0 | O27: Sch. 8 | P27: - | Q27: Sch. 3 | R27: + | S27: Line 573 | U27: (Mortgages & Loans Payable) via Schedule 4.
B28: 116 | D28: Building Improvements | F28: ='Sch. 8'!F29-'Activities 3'!F44-'Sch. 3'!E45 -> 0 | H28: ='Sch. 8'!H29-'Activities 3'!H44-'Sch. 3'!G45 -> 0 | J28: ='Sch. 8'!J29-'Activities 3'!J44-'Sch. 3'!I45 -> 0 | L28: =SUM(F28:J28) -> 0 | O28: Sch. 8 | P28: - | Q28: Sch. 3 | R28: + | S28: Line 574
B29: 117 | D29: Vehicles | F29: ='Sch. 8'!F30-'Activities 3'!F45-'Sch. 3'!E60 -> 0 | H29: ='Sch. 8'!H30-'Activities 3'!H45-'Sch. 3'!G60 -> 0 | J29: ='Sch. 8'!J30-'Activities 3'!J45-'Sch. 3'!I60 -> 0 | L29: =SUM(F29:J29) -> 0 | O29: Sch. 8 | P29: - | Q29: Sch. 3 | R29: + | S29: Line 575
B30: 118 | D30: Furniture & Equipment | F30: ='Sch. 8'!F31-'Activities 3'!F46-'Sch. 3'!E77 -> 0 | H30: ='Sch. 8'!H31-'Activities 3'!H46-'Sch. 3'!G77 -> 0 | J30: ='Sch. 8'!J31-'Activities 3'!J46-'Sch. 3'!I77 -> 0 | L30: =SUM(F30:J30) -> 0 | O30: Sch. 8 | P30: - | Q30: Sch. 3 | R30: + | S30: Line 576
D33: Total Assets: | F33: =SUM(F10:F32) -> 0 | H33: =SUM(H10:H32) -> 0 | J33: =SUM(J10:J32) -> 0 | L33: =SUM(L10:L32) -> 0 | O33: - | Q33: - | S33: -
A35: Liabilities:
B36: 200 | D36: Accounts Payable | F36: ='Sch. 5'!E22 -> 0 | H36: ='Sch. 5'!G22 -> 0 | J36: 0 | L36: =SUM(F36:J36) -> 0 | O36: Sch. 5 | Q36: - | S36: -
B37: 201 | D37: Assessments Payable | F37: 0 | H37: 0 | J37: 0 | L37: =SUM(F37:J37) -> 0 | O37: - | Q37: - | S37: -
B38: 202 | D38: Mortgages & Loans Payable | F38: ='Sch. 4'!M22 -> 0 | H38: ='Sch. 4'!M44 -> 0 | J38: ='Sch. 4'!M64 -> 0 | L38: 0 | O38: Sch. 4 | Q38: - | S38: -
B39: 203 | D39: Diocesan Loans Payable | F39: ='Sch. 4'!M23 -> 0 | H39: ='Sch. 4'!M45 -> 0 | J39: ='Sch. 4'!M65 -> 0 | L39: 0 | O39: Sch. 4 | Q39: - | S39: - | U39: Note | W39: The liability reported on Line 204 (Stipends Payable)
B40: 204 | D40: Stipends Payable | F40: 0 | H40: 0 | J40: 0 | L40: 0 | O40: - | Q40: - | S40: - | U40: should roughly equal the cash on hand in the Stipend bank account, as reported
B41: 205 | D41: Pension Contribution Payable | F41: 0 | H41: 0 | J41: 0 | L41: 0 | O41: - | Q41: - | S41: - | U41: for the Church on Line 3 of Schedule 1.
B42: 206 | D42: Insurance Premium Payable | F42: 0 | H42: 0 | J42: 0 | L42: =SUM(F42:J42) -> 0 | O42: - | Q42: - | S42: - | U42: =IF(ABS((Position!F40-'Sch. 1'!J12))<=99,"OK","Error") -> OK | W42: ="Line 102 = "&TEXT(F40,"$#,##0") -> Line 102 = $0 | Z42: ="Sch. 1, Line 3 = "&TEXT('Sch. 1'!J12,"$#,##0") -> Sch. 1, Line 3 = $0
B43: 207 | D43: Deferred Revenue | F43: ='Sch. 5'!E41 -> 0 | H43: ='Sch. 5'!G41 -> 0 | J43: ='Sch. 5'!I41 -> 0 | L43: 0 | O43: Sch. 5 | Q43: - | S43: - | W43: ="There is a difference of "&TEXT(ABS(F40-'Sch. 1'!J12),"$#,##0") -> There is a difference of $0
B44: 208 | D44: Payroll Liabilities | F44: 0 | H44: 0 | J44: 0 | L44: =SUM(F44:J44) -> 0 | O44: - | Q44: - | S44: -
B45: 209 | D45: Other Liabilities | F45: ='Sch. 5'!E60 -> 0 | H45: ='Sch. 5'!G60 -> 0 | J45: ='Sch. 5'!I60 -> 0 | L45: 0 | O45: Sch. 5 | Q45: - | S45: -
U47: Note | W47: The term "Net Assets" closely resembles the concept of
D48: Total Liabilities: | F48: =SUM(F36:F47) -> 0 | H48: =SUM(H36:H47) -> 0 | J48: =SUM(J36:J47) -> 0 | L48: =SUM(L36:L47) -> 0 | O48: - | Q48: - | S48: - | U48: Equity in a for-profit setting. Net Assets represents the balance of everything
U49: owned by (or owed to) the Parish and any obligations the Parish has to third-
B50: 300 | D50: Net Assets: | F50: =+F33-F48 -> 0 | H50: =+H33-H48 -> 0 | J50: =+J33-J48 -> 0 | L50: =+L33-L48 -> 0 | O50: Disclosures | Q50: - | S50: - | U50: parties. On the Statement of Position, Net Assets = Assets - Liabilities.
D52: Total Liabilities & Net Assets: | F52: =+F48+F50 -> 0 | H52: =+H48+H50 -> 0 | J52: =+J48+J50 -> 0 | L52: =+L48+L50 -> 0 | O52: - | Q52: - | S52: -

Sheet Activities 1
M1: Page 2
B3: Statement of Activities
B4: FYE June 30, 2022
F7: Church & | H7: School &
F8: Rectory | H8: Convent | J8: Cemetery | L8: Total | O8: Reference
A9: Ordinary Revenue: | Q9: Instructions | S9: This statement, which is split into three worksheets,
B10: 400 | D10: Weekend Collections | F10: 0 | H10: 0 | J10: 0 | L10: =SUM(F10:J10) -> 0 | O10: - | Q10: reports the revenues earned and expenses incurred by the Parish. It also
B11: 401 | D11: Holy Day Collections | F11: 0 | H11: 0 | J11: 0 | L11: =SUM(F11:J11) -> 0 | O11: - | Q11: calculates the "Change in Net Assets" (formerly called "Revenue Over/(Under)
B12: 402 | D12: Christmas Collection | F12: 0 | H12: 0 | J12: 0 | L12: =SUM(F12:J12) -> 0 | O12: - | Q12: Expense") as a result of the Parish's operations for the year.
B13: 403 | D13: Easter Collection | F13: 0 | H13: 0 | J13: 0 | L13: =SUM(F13:J13) -> 0 | O13: -
Q14: Fields shaded in purple will populate information directly from their related
Q15: schedules, which are indicated in the reference column.
D16: Collection Revenue (subtotal): | F16: =SUM(F10:F15) -> 0 | H16: =SUM(H10:H15) -> 0 | J16: =SUM(J10:J15) -> 0 | L16: =SUM(L10:L15) -> 0 | O16: -
Q17: The remaining line items must be manually entered on the face of the statement.
B18: 405 | D18: Gifts & Donations (Non-Development) | F18: 0 | H18: 0 | J18: 0 | L18: =SUM(F18:J18) -> 0 | O18: -
B19: 406 | D19: Fund Raising (Net) | F19: 0 | H19: 0 | J19: 0 | L19: =SUM(F19:J19) -> 0 | O19: - | R19: Is the Rental Income reported on Line 410 the result of a multi-year
B20: 410 | D20: Rental Income | F20: 0 | H20: 0 | J20: 0 | L20: =SUM(F20:J20) -> 0 | O20: - | Q20: FALSE | R20: lease? | S20: =IF(L20=0,"N/A",IF(Q20=FALSE,"No","Yes")) -> N/A | T20: =IF(AND(L20<>0,Q20=TRUE),"Please provide the lessee's name below:","") -> 
B21: 411 | D21: Offerings | F21: 0 | H21: 0 | L21: =SUM(F21:J21) -> 0 | O21: -
B22: 418 | D22: Dividends & Interest (non-DOM IMP) | F22: 0 | H22: 0 | J22: 0 | L22: =SUM(F22:J22) -> 0 | O22: -
Q23: Note | S23: Except where indicated, Parishes should not net revenues
Q24: and expenses in any account on the Statement of Activities. The exceptions to this
D25: Other Ordinary Rev. (subtotal): | F25: =SUM(F18:F23) -> 0 | H25: =SUM(H18:H23) -> 0 | J25: =SUM(J18:J23) -> 0 | L25: =SUM(L18:L23) -> 0 | O25: - | Q25: rule are Lines 406 (Fundraising), 570 (Food Service Operations), and 571 (Student
Q26: Activities).
D27: Total Ordinary Revenue: | F27: =F16+F25 -> 0 | H27: =H16+H25 -> 0 | J27: =J16+J25 -> 0 | L27: =L16+L25 -> 0 | O27: -
Q28: Note | S28: Line 418 (Dividends & Interest (non-DOM IMP)) should
A29: Extraordinary Revenue: | Q29: include any interest earned on bank deposits from "Schedule 1 - Cash" plus any
B30: 420 | D30: IMP Interest Income | F30: ='Sch. 2'!I25 -> 0 | H30: ='Sch. 2'!I49 -> 0 | J30: ='Sch. 2'!I66 -> 0 | L30: =SUM(F30:J30) -> 0 | O30: Sch. 2 | Q30: interest and/or dividends earned on external investments from "Schedule 2 -
B31: 424 | D31: Diocesan Grants | F31: 0 | H31: 0 | J31: 0 | L31: 0 | O31: - | Q31: Investments".
B32: 425 | D32: Authorized Collections | F32: 0 | H32: 0 | J32: 0 | L32: 0 | O32: -
B33: 426 | D33: Unrealized Gain/(Loss) | F33: ='Sch. 2'!K24 -> 0 | H33: ='Sch. 2'!K48 -> 0 | J33: ='Sch. 2'!K65 -> 0 | L33: 0 | O33: Sch. 2 | Q33: Note | S33: Any revenues reported on Line 425 (Authorized Collections)
B34: 427 | D34: Realized Gain/(Loss) | F34: ='Sch. 2'!M24 -> 0 | H34: ='Sch. 2'!M48 -> 0 | J34: ='Sch. 2'!M65 -> 0 | L34: 0 | O34: Sch. 2 | Q34: must be accompanied by written approval from the Bishop's Office.
B35: 428 | D35: Religious Education Fees | F35: 0 | H35: 0 | J35: 0 | L35: 0 | O35: - | Q35: =IF(('Activities 1'!F32=0),"OK","Backup Required") -> OK | S35: =IF(F32=0,"No Authorized Collections have been reported.","Please submit written approval for Authorized Collections.") -> No Authorized Collections have been reported.
B36: 429 | D36: Diocesan Collections | F36: ='Sch. 6'!H18 -> 0 | H36: 0 | J36: 0 | L36: =SUM(F36:J36) -> 0 | O36: Sch. 6
B37: 431 | D37: National & Missionary Appeals | F37: ='Sch. 6'!H41 -> 0 | H37: 0 | J37: 0 | L37: 0 | O37: Sch. 6
B38: 432 | D38: Bishop's Appeal Rebate | F38: 0 | H38: 0 | J38: 0 | L38: 0 | O38: -
B39: 433 | D39: Bequests (Inheritances) | F39: 0 | H39: 0 | J39: 0 | L39: 0 | O39: -
B40: 440 | D40: School Tuition & Fees | F40: 0 | H40: 0 | J40: 0 | L40: 0 | O40: -
B41: 441 | D41: Preschool Tuition & Fees | F41: 0 | H41: 0 | J41: 0 | L41: 0 | O41: -
B42: 442 | D42: Other School Fees | F42: 0 | H42: 0 | J42: 0 | L42: 0 | O42: -
B43: 443 | D43: Pupil Transportation Fees | F43: 0 | H43: 0 | J43: 0 | L43: 0 | O43: - | Q43: Note | S43: The revenue reported by the School on Line 444 (School
B44: 444 | D44: School Subsidy from Parish | F44: 0 | H44: 0 | J44: 0 | L44: 0 | O44: Line 540 | Q44: Subsidy from Parish) must agree with the expense reported by the Church on
B45: 447 | D45: School Subsidy from DOM Assessment | F45: 0 | H45: 0 | J45: 0 | L45: 0 | O45: - | Q45: Line 540 (Parish School Subsidy).
B46: 450 | D46: Cemetery Sales | F46: 0 | H46: 0 | J46: 0 | L46: 0 | O46: - | Q46: =IF(('Activities 1'!H44='Activities 3'!F10),"OK","Error") -> OK | S46: ="Line 444 = "&TEXT(H44,"$#,##0") -> Line 444 = $0 | V46: ="Line 540 = "&TEXT('Activities 3'!F10,"$#,##0") -> Line 540 = $0
B47: 451 | D47: Mausoleum Sales | F47: 0 | H47: 0 | J47: 0 | L47: 0 | O47: - | S47: ="There is a difference of "&TEXT(ABS(H44-'Activities 3'!F10),"$#,##0")&"." -> There is a difference of $0.
B48: 452 | D48: Burial Income | F48: 0 | H48: 0 | J48: 0 | L48: 0 | O48: -
B49: 453 | D49: Annual & Perpetual Care | F49: 0 | H49: 0 | J49: 0 | L49: 0 | O49: - | Q49: Note | S49: Line 454 (Other Revenue) has historically been an account
B50: 454 | D50: Other Revenue | F50: ='Sch. 7'!E27 -> 0 | H50: ='Sch. 7'!G27 -> 0 | J50: ='Sch. 7'!I27 -> 0 | L50: 0 | O50: Sch. 7 | Q50: where many Parishes have made reporting errors. For a detailed discussion of
B51: 460 | D51: Development Income | F51: 0 | H51: 0 | J51: 0 | L51: 0 | O51: - | Q51: this account, see "Schedule 7 - Other Statement of Activity Accounts".
D54: Extraordinary Revenue (subtotal): | F54: =SUM(F30:F52) -> 0 | H54: =SUM(H30:H52) -> 0 | J54: =SUM(J30:J52) -> 0 | L54: =SUM(L30:L52) -> 0 | O54: -
B56: 475 | D56: Total Revenue: | F56: =F27+F54 -> 0 | H56: =H27+H54 -> 0 | J56: =J27+J54 -> 0 | L56: =L27+L54 -> 0 | O56: -

Sheet Activities 2
M1: Page 3
B3: Statement of Activities
B4: FYE June 30, 2022
B5: (continued)
F7: Church & | H7: School &
F8: Rectory | H8: Convent | J8: Cemetery | L8: Total | O8: Reference
A9: Expenses:
B10: 500 | D10: Salaries: Clergy | F10: 0 | H10: 0 | J10: 0 | L10: =SUM(F10:J10) -> 0 | O10: -
B11: 501 | D11: Salaries: Religious | F11: 0 | H11: 0 | J11: 0 | L11: =SUM(F11:J11) -> 0 | O11: -
B12: - | D12: Salaries: Lay | O12: -
B13: 502 | D13: - Administrative/Clerical | F13: 0 | H13: 0 | J13: 0 | L13: =SUM(F13:J13) -> 0 | O13: -
B14: 502 | D14: - Instruction/Teachers | F14: 0 | H14: 0 | J14: 0 | L14: 0 | O14: - | Q14: Note | S14: Except where indicated, Parishes should not net revenues
B15: 502 | D15: - Maintenance/Custodial | F15: 0 | H15: 0 | J15: 0 | L15: 0 | O15: - | Q15: and expenses in any account on the Statement of Activities. The exceptions to this
B16: 502 | D16: - Musicians/Ministry | F16: 0 | H16: 0 | J16: 0 | L16: 0 | O16: - | Q16: rule are Lines 406 (Fundraising), 570 (Food Service Operations), and 571 (Student
B17: 503 | D17: Medical Insurance: Clergy | F17: 0 | H17: 0 | J17: 0 | L17: 0 | O17: - | Q17: Activities).
B18: 504 | D18: Medical Insurance: Religious/Lay | F18: 0 | H18: 0 | J18: 0 | L18: 0 | O18: -
B19: 505 | D19: Other Employee Benefits | F19: 0 | H19: 0 | J19: 0 | L19: 0 | O19: - | Q19: Note | S19: Clergy are considered self-employed for Social Security
B20: 506 | D20: Social Security: Employer Portion | F20: 0 | H20: 0 | J20: 0 | L20: 0 | O20: - | Q20: purposes. The Parish must not withhold FICA taxes from priests’ pay, and may not
B21: 507 | D21: Pension: Clergy | F21: 0 | H21: 0 | J21: 0 | L21: 0 | O21: - | Q21: pay the employer’s portion of priests’ Social Security expenses.
B22: 508 | D22: Lay Benefits | F22: 0 | H22: 0 | J22: 0 | L22: 0 | O22: - | Q22: =IF(ABS(L20-(SUM(L13:L16)*0.0765))<1,"OK",IF(L20>(SUM(L13:L16)*0.0765),"Error",IF((SUM(L13:L16)*0.0765)-L20>=(SUM(L13:L16)*0.0765)*0.25,"Error","OK"))) -> OK | S22: ="Line 502 X 7.65% = "&TEXT(SUM(L13:L16)*0.0765,"$#,##0")&"." -> Line 502 X 7.65% = $0. | V22: ="Line 506 = "&TEXT(L20,"$#,##0") -> Line 506 = $0
B23: 510 | D23: Food and Household | F23: 0 | H23: 0 | J23: 0 | L23: 0 | O23: - | S23: ="There is a difference of "&TEXT(ABS((SUM(L13:L16)*0.0765)-L20),"$#,##0")&"." -> There is a difference of $0.
R25: Has the Parish filed all of the necessary tax documents, including Forms
D26: Salaries & Benefits (subtotal): | F26: =SUM(F10:F25) -> 0 | H26: =SUM(H10:H25) -> 0 | J26: =SUM(J10:J25) -> 0 | L26: =SUM(L10:L25) -> 0 | O26: - | Q26: FALSE | R26: W-2 and/or Forms 1099? | U26: =IF(Q26=FALSE,"No","Yes") -> No
B29: 511 | D29: Office Supplies | F29: 0 | H29: 0 | J29: 0 | L29: =SUM(F29:J29) -> 0 | O29: - | Q29: Note | S29: Expenditures on fixed assets which the Parish does not
B30: 512 | D30: Furniture & Equipment < $500 | F30: 0 | H30: 0 | J30: 0 | L30: 0 | O30: - | Q30: wish to capitalize should not be included on "Schedule 3 - Fixed Assets", but rather
B31: 513 | D31: Contracted Services - Office Equip. | F31: 0 | H31: 0 | J31: 0 | L31: 0 | O31: - | Q31: should be reported on the Statement of Activities using the following lines:
B32: 514 | D32: Professional Services | F32: 0 | H32: 0 | J32: 0 | L32: 0 | O32: - | Q32: - | R32: 512 (Furniture & Equipment < $500)
B33: 515 | D33: Telephone | F33: 0 | H33: 0 | J33: 0 | L33: 0 | O33: - | Q33: - | R33: 521 (Repairs & Renovations < $5,000)
B34: 516 | D34: Printing & Stationery | F34: 0 | H34: 0 | J34: 0 | L34: 0 | O34: - | Q34: - | R34: 523 (Maintenance Equipment < $500)
B35: 517 | D35: Postage & Mailing | F35: 0 | H35: 0 | J35: 0 | L35: 0 | O35: -
B36: 518 | D36: Bank Charges | F36: 0 | H36: 0 | J36: 0 | L36: 0 | O36: -
B37: 519 | D37: Administration Expense | F37: 0 | H37: 0 | J37: 0 | L37: 0 | O37: -
D40: Administration (subtotal): | F40: =SUM(F29:F38) -> 0 | H40: =SUM(H29:H38) -> 0 | J40: =SUM(J29:J38) -> 0 | L40: =SUM(L29:L38) -> 0 | O40: -
B43: 520 | D43: Contracted Services | F43: 0 | H43: 0 | J43: 0 | L43: =SUM(F43:J43) -> 0 | O43: -
B44: 521 | D44: Repairs & Renovations < $5,000 | F44: 0 | H44: 0 | J44: 0 | L44: =SUM(F44:J44) -> 0 | O44: - | Q44: Note | S44: Parishes should report the total of all insurance premiums
B45: 522 | D45: Maintenance Supplies | F45: 0 | H45: 0 | J45: 0 | L45: =SUM(F45:J45) -> 0 | O45: - | Q45: billed for the fiscal year including Property & Liability insurance, auto insurance,
B46: 523 | D46: Maintenance Equipment < $500 | F46: 0 | H46: 0 | J46: 0 | L46: 0 | O46: - | Q46: student accident insurance, and special event insurance on Line 524 (Insurance).
B47: 524 | D47: Insurance | F47: 0 | H47: 0 | J47: 0 | L47: 0 | O47: -
B48: 525 | D48: Utilities | F48: 0 | H48: 0 | J48: 0 | L48: 0 | O48: - | Q48: As with all revenues and expenses on the Statement of Activities, Insurance must
B49: 526 | D49: Travel | F49: 0 | H49: 0 | J49: 0 | L49: 0 | O49: - | Q49: be reported on a full accrual basis. The entire Property & Liability Insurance
B50: 527 | D50: Cemetery Operations | F50: 0 | H50: 0 | J50: 0 | L50: =SUM(F50:J50) -> 0 | O50: - | Q50: expense billed for each fiscal year should be reported here regardless of when it is
B51: 528 | D51: Health Services | F51: 0 | H51: 0 | J51: 0 | L51: =SUM(F51:J51) -> 0 | O51: - | Q51: paid.
B52: 529 | D52: Pupil Transportation | F52: 0 | H52: 0 | J52: 0 | L52: =SUM(F52:J52) -> 0 | O52: -
D55: Operations & Maintenance (subtotal): | F55: =SUM(F43:F53) -> 0 | H55: =SUM(H43:H53) -> 0 | J55: =SUM(J43:J53) -> 0 | L55: =SUM(L43:L53) -> 0 | O55: -

Sheet Activities 3
M1: Page 4
B3: Statement of Activities
B4: FYE June 30, 2022
B5: (continued)
F7: Church & | H7: School &
F8: Rectory | H8: Convent | J8: Cemetery | L8: Total | O8: Reference
A9: Expenses (continued): | Q9: Note | S9: The revenue reported by the School on Line 444 (School
B10: 540 | D10: Parish School Subsidy | F10: 0 | H10: 0 | J10: 0 | L10: =SUM(F10:J10) -> 0 | O10: Line 444 | Q10: Subsidy from Parish) must agree with the expense reported by the Church on
B11: 542 | D11: Parish High School Subsidy | F11: 0 | H11: 0 | J11: 0 | L11: =SUM(F11:J11) -> 0 | O11: - | Q11: Line 540 (Parish School Subsidy).
B12: 543 | D12: Scholarships & Grants | F12: 0 | H12: 0 | J12: 0 | L12: 0 | O12: - | Q12: =IF(('Activities 1'!H44='Activities 3'!F10),"OK","Error") -> OK | S12: ="Line 444 = "&TEXT('Activities 1'!H44,"$#,##0") -> Line 444 = $0 | V12: ="Line 540 = "&TEXT('Activities 3'!F10,"$#,##0") -> Line 540 = $0
B13: 545 | D13: Religious Education | F13: 0 | H13: 0 | J13: 0 | L13: 0 | O13: - | S13: ="There is a difference of "&TEXT(ABS('Activities 1'!H44-'Activities 3'!F10),"$#,##0")&"." -> There is a difference of $0.
B14: 546 | D14: Liturgy & Worship | F14: 0 | H14: 0 | J14: 0 | L14: 0 | O14: -
B15: 547 | D15: Charities & Social Concerns | F15: 0 | H15: 0 | J15: 0 | L15: 0 | O15: - | Q15: Note | S15: Except where indicated, Parishes should not net revenues
B16: 548 | D16: Other Ministries | F16: 0 | H16: 0 | J16: 0 | L16: 0 | O16: - | Q16: and expenses in any account on the Statement of Activities. The exceptions to this
Q17: rule are Lines 406 (Fundraising), 570 (Food Service Operations), and 571 (Student
Q18: Activities).
D19: Parish Life & Ministries (subtotal): | F19: =SUM(F10:F17) -> 0 | H19: =SUM(H10:H17) -> 0 | J19: =SUM(J10:J17) -> 0 | L19: =SUM(L10:L17) -> 0 | O19: -
Q20: Note | S20: The sub-account 545.07 (Catholic Spirit Subscription
Q21: Expense) is no longer used. This expense should be reported with the Diocesan
B22: 550 | D22: Textbooks & Workbooks | F22: 0 | H22: 0 | J22: 0 | L22: =SUM(F22:J22) -> 0 | O22: - | Q22: Collections on the top of "Schedule 6 - Special Weekend Collections" as “Catholic
B23: 551 | D23: Library Expenses | F23: 0 | H23: 0 | J23: 0 | L23: 0 | O23: - | Q23: Press Month.”
B24: 552 | D24: Consumable Teaching Supplies | F24: 0 | H24: 0 | J24: 0 | L24: 0 | O24: -
B25: 553 | D25: Instructional Materials | F25: 0 | H25: 0 | J25: 0 | L25: 0 | O25: -
B26: 554 | D26: Other Expense for Instruction | F26: 0 | H26: 0 | J26: 0 | L26: 0 | O26: -
B27: 555 | D27: Staff Development | F27: 0 | H27: 0 | J27: 0 | L27: 0 | O27: -
D30: Instruction (subtotal): | F30: =SUM(F22:F28) -> 0 | H30: =SUM(H22:H28) -> 0 | J30: =SUM(J22:J28) -> 0 | L30: =SUM(L22:L28) -> 0 | O30: -
B33: 563 | D33: Mortgage & Loan Payments - Interest | F33: ='Sch. 4'!K26 -> 0 | H33: ='Sch. 4'!K48 -> 0 | J33: ='Sch. 4'!K68 -> 0 | L33: =SUM(F33:J33) -> 0 | O33: Sch. 4
B34: 564 | D34: Diocesan Assessments | F34: 0 | H34: 0 | J34: 0 | L34: 0 | O34: - | Q34: Note | S34: Parishes should report the total of all Assessment expenses
B35: 565 | D35: Diocesan Collections | F35: ='Sch. 6'!H18 -> 0 | H35: 0 | J35: 0 | L35: 0 | O35: Sch. 6 | Q35: billed for the fiscal year by the Diocese, including the Ordinary Assessment
B36: 566 | D36: National & Missionary Appeals | F36: ='Sch. 6'!H41 -> 0 | H36: 0 | J36: 0 | L36: 0 | O36: Sch. 6 | Q36: (Diocesan & High School Assessments), the Elementary School Assessment, and
B37: 567 | D37: Goal Payment - Bishop's Appeal | F37: 0 | H37: 0 | J37: 0 | L37: 0 | O37: - | Q37: the School Rental Assessment (if applicable).
B38: 568 | D38: Development Expense | F38: 0 | H38: 0 | J38: 0 | L38: 0 | O38: -
B39: 569 | D39: Rental of Land & Buildings | F39: 0 | H39: 0 | J39: 0 | L39: 0 | O39: - | Q39: As with all revenues and expenses on the Statement of Activities, Assessments
B40: 570 | D40: Food Service Operations (Net) | F40: 0 | H40: 0 | J40: 0 | L40: 0 | O40: - | Q40: must be reported on a full accrual basis. The entire sum of all Assessment
B41: 571 | D41: Student Activities (Net) | F41: 0 | H41: 0 | J41: 0 | L41: 0 | O41: - | Q41: expenses billed for each fiscal year should be reported here regardless of when
B42: 572 | D42: Other Fixed Expenses | F42: ='Sch. 7'!E51 -> 0 | H42: ='Sch. 7'!G51 -> 0 | J42: ='Sch. 7'!I51 -> 0 | L42: 0 | O42: Sch. 7 | Q42: they are paid.
B43: 573 | D43: Depreciation Expense - Buildings | F43: 0 | H43: 0 | J43: 0 | L43: 0 | O43: -
B44: 574 | D44: Depreciation Expense - Building Imp. | F44: 0 | H44: 0 | J44: 0 | L44: 0 | O44: - | Q44: If any payments are outstanding at the end of the fiscal year, the Parish should
B45: 575 | D45: Depreciation Expense - Vehicle | F45: 0 | H45: 0 | J45: 0 | L45: 0 | O45: - | Q45: establish a liability on Line 201 (Assessments Payable).
B46: 576 | D46: Depreciation Expense - Furn. & Equip. | F46: 0 | H46: 0 | J46: 0 | L46: 0 | O46: -
Q48: Note | S48: The term "Change in Net Assets" closely resembles the
D49: Extraordinary Expenses (subtotal): | F49: =SUM(F33:F47) -> 0 | H49: =SUM(H33:H47) -> 0 | J49: =SUM(J33:J47) -> 0 | L49: =SUM(L33:L47) -> 0 | O49: - | Q49: concept of Profit/(Loss) in a for-profit setting. A "profit" from the Parish's operations
Q50: results in an increase in Net Assets, while a "loss" from the Parish's operations
D51: Total Expenses: | F51: ='Activities 2'!F26+'Activities 2'!F40+'Activities 2'!F55+'Activities 3'!F19+'Activities 3'!F30+'Activities 3'!F49 -> 0 | H51: ='Activities 2'!H26+'Activities 2'!H40+'Activities 2'!H55+'Activities 3'!H19+'Activities 3'!H30+'Activities 3'!H49 -> 0 | J51: ='Activities 2'!J26+'Activities 2'!J40+'Activities 2'!J55+'Activities 3'!J19+'Activities 3'!J30+'Activities 3'!J49 -> 0 | L51: =SUM(F51:J51) -> 0 | O51: - | Q51: results in a decrease in Net Assets.
D53: Change in Net Assets: | F53: ='Activities 1'!F56-'Activities 3'!F51 -> 0 | H53: ='Activities 1'!H56-'Activities 3'!H51 -> 0 | J53: ='Activities 1'!J56-'Activities 3'!J51 -> 0 | L53: =SUM(F53:J53) -> 0 | O53: Disclosures

Sheet Disclosures
AC1: Page 5
B3: Net Asset Roll-Forward
AG4: Instructions | AI4: The Net Asset Roll-Forward provides a “proof” that all
V5: Church & | X5: School & | AG5: transactions have been reported utilizing double-entry bookkeeping.
V6: Rectory | X6: Convent | Z6: Cemetery | AB6: Total | AE6: Reference
AG7: Net Assets are calculated on the Statement of Financial Position as the difference
C8: Net Assets - Beginning of Year | V8: ='Sch. 8'!F46 -> 0 | X8: ='Sch. 8'!H46 -> 0 | Z8: ='Sch. 8'!J46 -> 0 | AB8: =SUM(V8:Z8) -> 0 | AE8: Sch. 8 | AG8: between Total Assets and Total Liabilities. The Roll-Forward takes the previous
C9: Plus: Change in Net Assets | V9: ='Activities 3'!F53 -> 0 | X9: ='Activities 3'!H53 -> 0 | Z9: ='Activities 3'!J53 -> 0 | AB9: =SUM(V9:Z9) -> 0 | AE9: Δ Net Assets | AG9: year's ending Net Assets from "Schedule 8 - Prior Year Worksheet" and adds or
AG10: subtracts the current year's Change in Net Assets from the Statement of Activities
C11: Net Assets - End of Year: | AG11: to arrive at the current year's ending Net Assets.
D12: Calculated Above | V12: =SUM(V8:V11) -> 0 | X12: =SUM(X8:X11) -> 0 | Z12: =SUM(Z8:Z11) -> 0 | AB12: =SUM(AB8:AB11) -> 0 | AE12: -
D13: From Statement of Financial Position | V13: =Position!F50 -> 0 | X13: =Position!H50 -> 0 | Z13: =Position!J50 -> 0 | AB13: =SUM(V13:Z13) -> 0 | AE13: Line 300 | AG13: When all of the transactions which took place during the fiscal year are reported
AG14: correctly, the two methods of calculating Net Assets will arrive at the same balance.
C16: Difference (calculated less reported)* | V16: =V12-V13 -> 0 | X16: =X12-X13 -> 0 | Z16: =Z12-Z13 -> 0 | AB16: =AB12-AB13 -> 0 | AE16: - | AG16: Note | AI16: If you have completed your statement and the Roll-Forward
AG17: contains a difference, double-check the following: 1) No entries have been made
AG18: directly to Line 300 (Net Assets), 2) Any prior year accruals have been reversed
C19: * There should not be a difference on this line. A difference can indicate (a) Net Assets-Beginning of Year | AG19: properly, and 3) Any necessary accruals have been made in the current year.
C20: was not correctly brought forward or (b) Change in Net Assets is not correct. Please check.
AG21: If you are still unable to balance this Net Asset Roll-Forward, please contact Jeffrey
AG22: Greczek for assistance at jgreczek@diometuchen.org or (732) 562-2429.
AG23: =IF(OR(1<V16,V16<-1,1<X16,X16<-1,1<Z16,Z16<-1),"Error","OK") -> OK | AI23: =IF(OR(1<V16,V16<-1,1<X16,X16<-1,1<Z16,Z16<-1),"Your Net Asset Roll-Forward is out of balance.","Your Net Asset Roll-Forward is in balance.") -> Your Net Asset Roll-Forward is in balance.
B24: Cash Flows From Operations
V26: Church & | X26: School &
V27: Rectory | X27: Convent | Z27: Cemetery | AB27: Total | AE27: Reference
C29: Change in Net Assets | V29: ='Activities 3'!F53 -> 0 | X29: ='Activities 3'!H53 -> 0 | Z29: ='Activities 3'!J53 -> 0 | AB29: =SUM(V29:Z29) -> 0 | AE29: Δ Net Assets
D30: Plus: Depreciation Expense | V30: =SUM('Activities 3'!F43:F46) -> 0 | X30: =SUM('Activities 3'!H43:H46) -> 0 | Z30: =SUM('Activities 3'!J43:J46) -> 0 | AB30: 0 | AE30: Lines 573-576
D31: Less: Capitalized Assets | V31: =-('Sch. 3'!E10+'Sch. 3'!E22+SUM('Sch. 3'!E36:E39)+SUM('Sch. 3'!E53:E54)+SUM('Sch. 3'!E68:E71)) -> 0 | X31: =-('Sch. 3'!G10+'Sch. 3'!G22+SUM('Sch. 3'!G36:G39)+SUM('Sch. 3'!G53:G54)+SUM('Sch. 3'!G68:G71)) -> 0 | Z31: =-('Sch. 3'!I10+'Sch. 3'!I22+SUM('Sch. 3'!I36:I39)+SUM('Sch. 3'!I53:I54)+SUM('Sch. 3'!I68:I71)) -> 0 | AB31: 0 | AE31: Sch. 3
D32: Less: Loan Principal Payments | V32: =-('Sch. 4'!I10+SUM('Sch. 4'!I13:I17)) -> 0 | X32: =-('Sch. 4'!I32+SUM('Sch. 4'!I35:I39)) -> 0 | Z32: =-('Sch. 4'!I54+SUM('Sch. 4'!I57:I59)) -> 0 | AB32: 0 | AE32: Sch. 4
D33: Plus: Unrealized Losses | V33: =IF('Activities 1'!F33<0,-'Activities 1'!F33,0) -> 0 | X33: =IF('Activities 1'!H33<0,-'Activities 1'!H33,0) -> 0 | Z33: =IF('Activities 1'!J33<0,-'Activities 1'!J33,0) -> 0 | AB33: 0 | AE33: Line 426
D34: Less: Unrealized Gains | V34: =IF('Activities 1'!F33>0,-'Activities 1'!F33,0) -> 0 | X34: =IF('Activities 1'!H33>0,-'Activities 1'!H33,0) -> 0 | Z34: =IF('Activities 1'!J33>0,-'Activities 1'!J33,0) -> 0 | AB34: 0 | AE34: Line 426
C37: Cash Flow From Operations | V37: =SUM(V29:V36) -> 0 | X37: =SUM(X29:X36) -> 0 | Z37: =SUM(Z29:Z36) -> 0 | AB37: =SUM(AB29:AB36) -> 0
B41: Supplemental Disclosures
V43: Church & | X43: School &
V44: Rectory | X44: Convent | Z44: Cemetery | AB44: Total | AE44: Reference | AG44: Instructions | AI44: The Supplemental Disclosures are a collection of
C45: Principal Payments | AG45: disclosures which present information previously reported on the Statement of
D46: Diocesan Loans | V46: ='Sch. 4'!I23 -> 0 | X46: ='Sch. 4'!I45 -> 0 | Z46: ='Sch. 4'!I65 -> 0 | AB46: =SUM(V46:Z46) -> 0 | AE46: Sch. 4 | AG46: Revenues & Expenditures in previous year’s reports, but which are no longer
D47: External Mortgages & Loans | V47: ='Sch. 4'!I22 -> 0 | X47: ='Sch. 4'!I44 -> 0 | Z47: ='Sch. 4'!I64 -> 0 | AB47: =SUM(V47:Z47) -> 0 | AE47: Sch. 4 | AG47: presented on the Statement of Activities.
C49: Purchase/(Disposal) of Fixed Assets | AG49: All of the data on this page populates from other sections of the report, with the
E50: Land | V50: =(Position!F20-'Sch. 8'!F21) -> 0 | X50: =(Position!H20-'Sch. 8'!H21) -> 0 | Z50: =(Position!J20-'Sch. 8'!J21) -> 0 | AB50: =SUM(V50:Z50) -> 0 | AE50: Line 110 | AG50: exception of the information regarding deposits to and withdrawals from the
E51: Buildings | V51: =(Position!F21-'Sch. 8'!F22) -> 0 | X51: =(Position!H21-'Sch. 8'!H22) -> 0 | Z51: =(Position!J21-'Sch. 8'!J22) -> 0 | AB51: =SUM(V51:Z51) -> 0 | AE51: Line 111 | AG51: Parish's investment accounts, which must be entered in the green cells manually.
E52: Building Improvements | V52: =(Position!F22-'Sch. 8'!F23) -> 0 | X52: =(Position!H22-'Sch. 8'!H23) -> 0 | Z52: =(Position!J22-'Sch. 8'!J23) -> 0 | AB52: 0 | AE52: Line 112
E53: Vehicles | V53: =(Position!F23-'Sch. 8'!F24) -> 0 | X53: =(Position!H23-'Sch. 8'!H24) -> 0 | Z53: =(Position!J23-'Sch. 8'!J24) -> 0 | AB53: 0 | AE53: Line 113
E54: Furniture & Equipment | V54: =(Position!F24-'Sch. 8'!F25) -> 0 | X54: =(Position!H24-'Sch. 8'!H25) -> 0 | Z54: =(Position!J24-'Sch. 8'!J25) -> 0 | AB54: 0 | AE54: Line 114
C56: Diocesan Investment Mgmt. Program
E57: Additions (exclude reinvested interest) | V57: 0 | X57: 0 | Z57: 0 | AB57: =SUM(V57:Z57) -> 0 | AE57: -
E58: Withdrawals | V58: 0 | X58: 0 | Z58: 0 | AB58: 0 | AE58: -
C60: External Investments
E61: Additions (exclude reinvested int. & div.) | V61: 0 | X61: 0 | Z61: 0 | AB61: =SUM(V61:Z61) -> 0 | AE61: - | AG61: Note | AI61: The Average Weekend Collection is calculated as Line 400
E62: Withdrawals | V62: 0 | X62: 0 | Z62: 0 | AB62: 0 | AE62: - | AG62: (Weekend Collections) divided by 51, which is the number of Sundays in the fiscal
AG63: year not including Easter. The Average Donation per Registered Family is calculated
C64: Collection Statistics | AG64: as Line 400 divided by the number of Registered Catholic Families reported on the
E65: Average Weekend Collection (51 weeks) | V65: ='Activities 1'!F10/51 -> 0 | AE65: Line 400 | AG65: cover of this statement.
E66: Average Donation per Registered Family | V66: =IF(Cover!G15=0,0,'Activities 1'!F10/Cover!G15) -> 0 | AE66: Cover

Sheet Sch. 1
K1: Schedule 1
A3: Cash
B6: Church
B7: # | D7: Financial | F7: Description | H7: Interest | J7: Balance at | O7: Instructions | Q7: "Schedule 1 - Cash" is intended to report a detailed
D8: Institution | H8: Rate | J8: 2022-06-30 | M8: Reference | O8: breakdown of the Parish's bank accounts.
B10: 1 | D10: - | F10: Operating | H10: 0.00% | J10: 0 | M10: - | O10: The Schedule is split into Church, School, and Cemetery sections. When it is
B11: 2 | D11: - | F11: Payroll | H11: 0.00% | J11: 0 | M11: - | O11: completed, totals will automatically populate to Line 100 (Cash) on the
B12: 3 | D12: - | F12: Stipend | H12: 0.00% | J12: 0 | M12: - | O12: Statement of Position.
B13: 4 | D13: - | F13: - | H13: 0.00% | J13: 0 | M13: -
B14: 5 | D14: - | F14: - | H14: 0.00% | J14: 0 | M14: - | O14: Note | Q14: Each cash account should be reported as a separate
B15: 6 | D15: - | F15: - | H15: 0.00% | J15: 0 | M15: - | O15: line item. If more space is needed, attach a list of additional bank accounts,
B16: 7 | D16: - | F16: - | H16: 0.00% | J16: 0 | M16: - | O16: enter the total of these accounts on the last available line, and indicate "see
B17: 8 | D17: - | F17: - | H17: 0.00% | J17: 0 | M17: - | O17: attached list" in the description field.
B18: 9 | D18: - | F18: - | H18: 0.00% | J18: 0 | M18: -
B19: 10 | D19: - | F19: - | H19: 0.00% | J19: 0 | M19: - | O19: Note | Q19: Please forward a copy of the June 30, 2018 statement
B20: 11 | D20: - | F20: - | H20: 0.00% | J20: 0 | M20: - | O20: for each bank account listed on Schedule 1. Only send the account summary
B21: 12 | D21: - | F21: - | H21: 0.00% | J21: 0 | M21: - | O21: and balance. You do not need to send transaction histories or check images.
B22: 13 | D22: - | F22: - | H22: 0.00% | J22: 0 | M22: -
B23: 14 | D23: - | F23: - | H23: 0.00% | J23: 0 | M23: -
H26: Total: | J26: =SUM(J10:J25) -> 0 | M26: Line 100
B28: School
B29: # | D29: Financial | F29: Description | H29: Interest | J29: Balance at
D30: Institution | H30: Rate | J30: 2022-06-30 | M30: Reference
B32: 1 | D32: - | F32: Operating | H32: 0.00% | J32: 0 | M32: -
B33: 2 | D33: - | F33: - | H33: 0.00% | J33: 0 | M33: -
B34: 3 | D34: - | F34: - | H34: 0.00% | J34: 0 | M34: -
B35: 4 | D35: - | F35: - | H35: 0.00% | J35: 0 | M35: -
B36: 5 | D36: - | F36: - | H36: 0.00% | J36: 0 | M36: -
B37: 6 | D37: - | F37: - | H37: 0.00% | J37: 0 | M37: -
B38: 7 | D38: - | F38: - | H38: 0.00% | J38: 0 | M38: -
B39: 8 | D39: - | F39: - | H39: 0.00% | J39: 0 | M39: -
B40: 9 | D40: - | F40: - | H40: 0.00% | J40: 0 | M40: -
B41: 10 | D41: - | F41: - | H41: 0.00% | J41: 0 | M41: -
B42: 11 | D42: - | F42: - | H42: 0.00% | J42: 0 | M42: -
B43: 12 | D43: - | F43: - | H43: 0.00% | J43: 0 | M43: -
H46: Total: | J46: =SUM(J32:J45) -> 0 | M46: Line 100
B48: Cemetery
B49: # | D49: Financial | F49: Description | H49: Interest | J49: Balance at
D50: Institution | H50: Rate | J50: 2022-06-30 | M50: Reference
B52: 1 | D52: - | F52: - | H52: 0.00% | J52: 0 | M52: -
B53: 2 | D53: - | F53: - | H53: 0.00% | J53: 0 | M53: -
B54: 3 | D54: - | F54: - | H54: 0.00% | J54: 0 | M54: -
B55: 4 | D55: - | F55: - | H55: 0.00% | J55: 0 | M55: -
H58: Total: | J58: =SUM(J52:J57) -> 0 | M58: Line 100

Sheet Sch. 2
O1: Schedule 2
A3: Investments
Q5: Instructions | U5: Notes
A6: Church | Q6: ® ® ® ® ® ® ® ® ® ® ® ® ®
A7: # | C7: Financial | E7: Description | G7: Interest | I7: Dividends & | K7: Gains / (Losses) | O7: FMV at | Y7: Instructions | AA7: "Schedule 2 - Investments" is intended to report a
C8: Institution | G8: Rate | I8: Interest Earned | K8: Unrealized | M8: Realized | O8: 2022-06-30 | Q8: Reference | S8: Reference | U8: Reference | W8: Reference | Y8: detailed breakdown of the Parish's Diocesan and external investments.
A10: - | C10: Diocese of Metuchen | E10: Total Investment Mgmt. Program | G10: 1.5 - 3% | I10: 0 | K10: 0 | M10: 0 | O10: 0 | Q10: - | S10: - | U10: - | W10: - | Y10: The Schedule is split into Church, School, and Cemetery sections. When it is
A11: 1 | C11: - | E11: - | G11: 0.00% | I11: 0 | K11: 0 | M11: 0 | O11: 0 | Q11: - | S11: - | U11: - | W11: - | Y11: completed, totals will automatically populate to the correct places in the
A12: 2 | C12: - | E12: - | G12: 0.00% | I12: 0 | K12: 0 | M12: 0 | O12: 0 | Q12: - | S12: - | U12: - | W12: - | Y12: Statement of Position and the Statement of Activities.
A13: 3 | C13: - | E13: - | G13: 0.00% | I13: 0 | K13: 0 | M13: 0 | O13: 0 | Q13: - | S13: - | U13: - | W13: -
A14: 4 | C14: - | E14: - | G14: 0.00% | I14: 0 | K14: 0 | M14: 0 | O14: 0 | Q14: - | S14: - | U14: - | W14: - | Y14: Report the combined total for all Diocesan Investment Management
A15: 5 | C15: - | E15: - | G15: 0.00% | I15: 0 | K15: 0 | M15: 0 | O15: 0 | Q15: - | S15: - | U15: - | W15: - | Y15: Program accounts as one combined line item, using the remaining lines for
A16: 6 | C16: - | E16: - | G16: 0.00% | I16: 0 | K16: 0 | M16: 0 | O16: 0 | Q16: - | S16: - | U16: - | W16: - | Y16: external investments.
A17: 7 | C17: - | E17: - | G17: 0.00% | I17: 0 | K17: 0 | M17: 0 | O17: 0 | Q17: - | S17: - | U17: - | W17: -
A18: 8 | C18: - | E18: - | G18: 0.00% | I18: 0 | K18: 0 | M18: 0 | O18: 0 | Q18: - | S18: - | U18: - | W18: - | Y18: Information regarding any additions to or withdrawals from investment
A19: 9 | C19: - | E19: - | G19: 0.00% | I19: 0 | K19: 0 | M19: 0 | O19: 0 | Q19: - | S19: - | U19: - | W19: - | Y19: accounts must be reported manually in the “Supplemental Disclosures” section.
Y21: Note | AA21: Examples of investments to be reported on Schedule 2
G22: Total: | I22: =SUM(I10:I21) -> 0 | K22: =SUM(K10:K21) -> 0 | M22: =SUM(M10:M21) -> 0 | O22: =SUM(O10:O21) -> 0 | Q22: - | S22: - | U22: - | W22: - | Y22: include bonds, certificates of deposit, mutual funds, and stocks. Schedule 2
Y23: should not include savings accounts or Money Market Accounts, which should
G24: External Investments: | I24: =SUM(I11:I19) -> 0 | K24: =SUM(K11:K19) -> 0 | M24: =SUM(M11:M19) -> 0 | O24: =SUM(O11:O19) -> 0 | Q24: - | S24: Line 426 | U24: Line 427 | W24: Line 104 | Y24: be reported on "Schedule 1 – Cash" and included in Line 100.
G25: Diocesan Investment Management Program: | I25: =I10 -> 0 | K25: =K10 -> 0 | M25: =M10 -> 0 | O25: =O10 -> 0 | Q25: Line 420 | S25: - | U25: - | W25: Line 102
Y26: Note | AA26: Please forward a copy of the entire June 30, 2018
Y27: statement for each external investment listed on Schedule 2. You do not need
G28: Total: | I28: =SUM(I24:I27) -> 0 | K28: =SUM(K24:K27) -> 0 | M28: =SUM(M24:M27) -> 0 | O28: =SUM(O24:O27) -> 0 | Q28: - | S28: - | U28: - | W28: - | Y28: to send statements for investments in the Diocesan Investment Management
Y29: Program.
A30: School
A31: # | C31: Financial | E31: Description | G31: Interest | I31: Dividends & | K31: Gains / (Losses) | O31: FMV at | Y31: Note | AA31: Dividends & Interest Earned: enter the total of all
C32: Institution | G32: Rate | I32: Interest Earned | K32: Unrealized | M32: Realized | O32: 2022-06-30 | Q32: Reference | S32: Reference | U32: Reference | W32: Reference | Y32: interest and dividend revenue earned during the fiscal year. For interest or
Y33: dividends earned during the fiscal year but not yet received, include them here
A34: - | C34: Diocese of Metuchen | E34: Total Investment Mgmt. Program | G34: 1.5 - 3% | I34: 0 | K34: 0 | M34: 0 | O34: 0 | Q34: - | S34: - | U34: - | W34: - | Y34: and establish a receivable on Line 107 (Accounts Receivable) for the portion
A35: 1 | C35: - | E35: - | G35: 0.00% | I35: 0 | K35: 0 | M35: 0 | O35: 0 | Q35: - | S35: - | U35: - | W35: - | Y35: due to the Parish.
A36: 2 | C36: - | E36: - | G36: 0.00% | I36: 0 | K36: 0 | M36: 0 | O36: 0 | Q36: - | S36: - | U36: - | W36: -
A37: 3 | C37: - | E37: - | G37: 0.00% | I37: 0 | K37: 0 | M37: 0 | O37: 0 | Q37: - | S37: - | U37: - | W37: - | Y37: Note | AA37: Unrealized Gains/(Losses): Enter the net total of any
A38: 4 | C38: - | E38: - | G38: 0.00% | I38: 0 | K38: 0 | M38: 0 | O38: 0 | Q38: - | S38: - | U38: - | W38: - | Y38: increases or decreases in the fair market value of investments as compared to
A39: 5 | C39: - | E39: - | G39: 0.00% | I39: 0 | K39: 0 | M39: 0 | O39: 0 | Q39: - | S39: - | U39: - | W39: - | Y39: last year’s Parish Financial Statement & Report.
A40: 6 | C40: - | E40: - | G40: 0.00% | I40: 0 | K40: 0 | M40: 0 | O40: 0 | Q40: - | S40: - | U40: - | W40: -
A41: 7 | C41: - | E41: - | G41: 0.00% | I41: 0 | K41: 0 | M41: 0 | O41: 0 | Q41: - | S41: - | U41: - | W41: - | Y41: Note | AA41: Realized Gains/(Losses): Realized Gains/(Losses) are
A42: 8 | C42: - | E42: - | G42: 0.00% | I42: 0 | K42: 0 | M42: 0 | O42: 0 | Q42: - | S42: - | U42: - | W42: - | Y42: only reported upon the sale of investments. Enter the difference between the
A43: 9 | C43: - | E43: - | G43: 0.00% | I43: 0 | K43: 0 | M43: 0 | O43: 0 | Q43: - | S43: - | U43: - | W43: - | Y43: last reported fair market value and the amount of the sale.
G46: Total: | I46: =SUM(I34:I45) -> 0 | K46: =SUM(K34:K45) -> 0 | M46: =SUM(M34:M45) -> 0 | O46: =SUM(O34:O45) -> 0 | Q46: - | S46: - | U46: - | W46: -
G48: External Investments: | I48: =SUM(I35:I43) -> 0 | K48: =SUM(K35:K43) -> 0 | M48: =SUM(M35:M43) -> 0 | O48: =SUM(O35:O43) -> 0 | Q48: - | S48: Line 426 | U48: Line 427 | W48: Line 104
G49: Diocesan Investment Management Program: | I49: =SUM(I34) -> 0 | K49: =SUM(K34) -> 0 | M49: =SUM(M34) -> 0 | O49: =SUM(O34) -> 0 | Q49: Line 420 | S49: - | U49: - | W49: Line 102
G52: Total: | I52: =SUM(I48:I51) -> 0 | K52: =SUM(K48:K51) -> 0 | M52: =SUM(M48:M51) -> 0 | O52: =SUM(O48:O51) -> 0 | Q52: - | S52: - | U52: - | W52: -
A54: Cemetery
A55: # | C55: Financial | E55: Description | G55: Interest | I55: Dividends & | K55: Gains / (Losses) | O55: FMV at
C56: Institution | G56: Rate | I56: Interest Earned | K56: Unrealized | M56: Realized | O56: 2022-06-30 | Q56: Reference | S56: Reference | U56: Reference | W56: Reference
A58: - | C58: Diocese of Metuchen | E58: Total Investment Mgmt. Program | G58: 1.5 - 3% | I58: 0 | K58: 0 | M58: 0 | O58: 0 | Q58: - | S58: - | U58: - | W58: -
A59: 1 | C59: - | E59: - | G59: 0.00% | I59: 0 | K59: 0 | M59: 0 | O59: 0 | Q59: - | S59: - | U59: - | W59: -
A60: 2 | C60: - | E60: - | G60: 0.00% | I60: 0 | K60: 0 | M60: 0 | O60: 0 | Q60: - | S60: - | U60: - | W60: -
G63: Total: | I63: =SUM(I58:I62) -> 0 | K63: =SUM(K58:K62) -> 0 | M63: =SUM(M58:M62) -> 0 | O63: =SUM(O58:O62) -> 0 | Q63: - | S63: - | U63: - | W63: -
G65: External Investments: | I65: =SUM(I59:I60) -> 0 | K65: =SUM(K59:K60) -> 0 | M65: =SUM(M59:M60) -> 0 | O65: =SUM(O59:O60) -> 0 | Q65: - | S65: Line 426 | U65: Line 427 | W65: Line 104
G66: Diocesan Investment Management Program: | I66: =SUM(I58) -> 0 | K66: =SUM(K58) -> 0 | M66: =SUM(M58) -> 0 | O66: =SUM(O58) -> 0 | Q66: Line 420 | S66: - | U66: - | W66: Line 102
G69: Total: | I69: =SUM(I65:I68) -> 0 | K69: =SUM(K65:K68) -> 0 | M69: =SUM(M65:M68) -> 0 | O69: =SUM(O65:O68) -> 0 | Q69: - | S69: - | U69: - | W69: -

Sheet Sch. 3
K1: Schedule 3
B3: Fixed Assets
B6: Land
B7: Description | E7: Church & | G7: School & | I7: Cemetery | K7: Total | O7: Instructions | Q7: "Schedule 3 - Fixed Assets" is intended to provide a
E8: Rectory | G8: Convent | M8: Reference | O8: detailed breakdown of fixed assets purchased and disposed of during the
O9: year.
B10: - | C10: Purchases | E10: 0 | G10: 0 | I10: 0 | K10: =SUM(E10:I10) -> 0 | M10: -
B11: - | C11: Disposals | E11: 0 | G11: 0 | I11: 0 | K11: =SUM(E11:I11) -> 0 | M11: - | O11: The Schedule is split into sections by asset type. When it is completed, totals
O12: will automatically populate to the correct places in the Statement of Position.
M13: Sch. 7
C14: Total Change: | E14: =E10-E11 -> 0 | G14: =G10-G11 -> 0 | I14: =I10-I11 -> 0 | K14: =K10-K11 -> 0 | M14: Line 110 | O14: This schedule should also be used to remove Accumulated Depreciation (A/D)
O15: from the Statement of Position when the corresponding fixed assets are
O16: disposed of. Enter only positive numbers.
B17: Buildings
B18: Description | E18: Church & | G18: School & | I18: Cemetery | K18: Total | O18: Additions to A/D, which are entered as expenses on Lines 573-576 in the
E19: Rectory | G19: Convent | M19: Reference | O19: Statement of Position, should not be entered here.
O21: Note | Q21: Items which the Parish intends to expense immediately
B22: - | C22: Purchases | E22: 0 | G22: 0 | I22: 0 | K22: =SUM(E22:I22) -> 0 | M22: - | O22: should not be included on "Schedule 3 - Fixed Assets", but rather should be
B23: - | C23: Disposals | E23: 0 | G23: 0 | I23: 0 | K23: =SUM(E23:I23) -> 0 | M23: - | O23: reported on the Statement of Activities using the following lines:
P24: - | Q24: 512 (Furniture & Equipment < $500)
M25: Sch. 7 | P25: - | Q25: 521 (Repairs & Renovations < $5,000)
C26: Total Change: | E26: =E22-E23 -> 0 | G26: =G22-G23 -> 0 | I26: =I22-I23 -> 0 | K26: =K22-K23 -> 0 | M26: Line 111 | P26: - | Q26: 523 (Maintenance Equipment < $500)
M27: Sch. 7
C28: Disposal of A/D: | E28: 0 | G28: 0 | I28: 0 | K28: =SUM(E28:I28) -> 0 | M28: Line 115
B31: Building Improvements
B32: Description | E32: Church & | G32: School & | I32: Cemetery | K32: Total
E33: Rectory | G33: Convent | M33: Reference
B35: - | C35: Purchases:
B36: 1 | C36: - | E36: 0 | G36: 0 | I36: 0 | K36: =SUM(E36:I36) -> 0 | M36: -
B37: 2 | C37: - | E37: 0 | G37: 0 | I37: 0 | K37: =SUM(E37:I37) -> 0 | M37: -
B38: 3 | C38: - | E38: 0 | G38: 0 | I38: 0 | K38: =SUM(E38:I38) -> 0 | M38: -
B39: 4 | C39: - | E39: 0 | G39: 0 | I39: 0 | K39: =SUM(E39:I39) -> 0 | M39: -
B40: - | C40: Disposals | E40: 0 | G40: 0 | I40: 0 | K40: =SUM(E40:I40) -> 0 | M40: -
M42: Sch. 7
C43: Total Change: | E43: =SUM(E36:E39)-E40 -> 0 | G43: =SUM(G36:G39)-G40 -> 0 | I43: =SUM(I36:I39)-I40 -> 0 | K43: =SUM(K36:K39)-K40 -> 0 | M43: Line 112
M44: Sch. 7
C45: Disposal of A/D: | E45: 0 | G45: 0 | I45: 0 | K45: =SUM(E45:I45) -> 0 | M45: Line 116
B48: Vehicles
B49: Description | E49: Church & | G49: School & | I49: Cemetery | K49: Total
E50: Rectory | G50: Convent | M50: Reference
B52: - | C52: Purchases:
B53: 1 | C53: - | E53: 0 | G53: 0 | I53: 0 | K53: =SUM(E53:I53) -> 0 | M53: -
B54: 2 | C54: - | E54: 0 | G54: 0 | I54: 0 | K54: =SUM(E54:I54) -> 0 | M54: -
B55: - | C55: Disposals | E55: 0 | G55: 0 | I55: 0 | K55: =SUM(E55:I55) -> 0 | M55: -
M57: Sch. 7
C58: Total Change: | E58: =SUM(E53:E54)-E55 -> 0 | G58: =SUM(G53:G54)-G55 -> 0 | I58: =SUM(I53:I54)-I55 -> 0 | K58: =SUM(K53:K54)-K55 -> 0 | M58: Line 113
M59: Sch. 7
C60: Disposal of A/D: | E60: 0 | G60: 0 | I60: 0 | K60: =SUM(E60:I60) -> 0 | M60: Line 117
B63: Furniture & Equipment
B64: Description | E64: Church & | G64: School & | I64: Cemetery | K64: Total
E65: Rectory | G65: Convent | M65: Reference
B67: - | C67: Purchases:
B68: 1 | C68: - | E68: 0 | G68: 0 | I68: 0 | K68: =SUM(E68:I68) -> 0 | M68: -
B69: 2 | C69: - | E69: 0 | G69: 0 | I69: 0 | K69: =SUM(E69:I69) -> 0 | M69: -
B70: 3 | C70: - | E70: 0 | G70: 0 | I70: 0 | K70: =SUM(E70:I70) -> 0 | M70: -
B71: 4 | C71: - | E71: 0 | G71: 0 | I71: 0 | K71: =SUM(E71:I71) -> 0 | M71: -
B72: - | C72: Disposals: | E72: 0 | G72: 0 | I72: 0 | K72: =SUM(E72:I72) -> 0 | M72: -
M74: Sch. 7
C75: Total Change: | E75: =SUM(E68:E71)-E72 -> 0 | G75: =SUM(G68:G71)-G72 -> 0 | I75: =SUM(I68:I71)-I72 -> 0 | K75: =SUM(K68:K71)-K72 -> 0 | M75: Line 114
M76: Sch. 7
C77: Disposal of A/D: | E77: 0 | G77: 0 | I77: 0 | K77: =SUM(E77:I77) -> 0 | M77: Line 118

Sheet Sch. 4
M1: Schedule 4
C3: Mortgages & Loans Payable
A6: Church
A7: # | C7: Financial | E7: Description | G7: Interest | I7: Payments This Fiscal Year | M7: Balance at | U7: Instructions | W7: "Schedule 4 - Mortgages & Loans Payable" is intended
C8: Institution | G8: Rate | I8: Principal | K8: Interest | M8: 2022-06-30 | O8: Reference | Q8: Reference | S8: Reference | U8: to provide a detailed breakdown of funds owed to third parties by the Parish,
U9: including details of payments made during the fiscal year as well as any unpaid
A10: 1 | C10: Diocese of Metuchen | E10: Diocesan Loans (formerly PAF) | G10: 0.00% | I10: 0 | K10: 0 | M10: 0 | O10: - | Q10: - | S10: - | U10: balance at year end. Report each mortgage or loan as a separate line item.
A11: 2 | C11: Parish School | E11: Inter-Parish Loan | G11: 0.00% | I11: 0 | K11: 0 | M11: 0 | O11: - | Q11: - | S11: -
A12: 3 | C12: Parish Cemetery | E12: Inter-Parish Loan | G12: 0.00% | I12: 0 | K12: 0 | M12: 0 | O12: - | Q12: - | S12: - | U12: The Schedule is split into Church, School, and Cemetery sections. When it is
A13: 4 | C13: - | E13: - | G13: 0.00% | I13: 0 | K13: 0 | M13: 0 | O13: - | Q13: - | S13: - | U13: completed, totals will automatically populate to the correct places in the
A14: 5 | C14: - | E14: - | G14: 0.00% | I14: 0 | K14: 0 | M14: 0 | O14: - | Q14: - | S14: - | U14: Statement of Position and the Statement of Activities.
A15: 6 | C15: - | E15: - | G15: 0.00% | I15: 0 | K15: 0 | M15: 0 | O15: - | Q15: - | S15: -
A16: 7 | C16: - | E16: - | G16: 0.00% | I16: 0 | K16: 0 | M16: 0 | O16: - | Q16: - | S16: - | U16: Information regarding any loans taken from the Diocesan Investment
A17: 8 | C17: - | E17: - | G17: 0.00% | I17: 0 | K17: 0 | M17: 0 | O17: - | Q17: - | S17: - | U17: Management Program (IMP) should be reported in the appropriate section on
U18: line 1.
G20: Total: | I20: =SUM(I10:I19) -> 0 | K20: =SUM(K10:K19) -> 0 | M20: =SUM(M10:M19) -> 0 | O20: - | Q20: - | S20: - | U20: Loans due to other reporting units in the Parish (Church, Cemetery, or School)
U21: should be reported in the appropriate section on lines 2 and 3.
G22: Mortgages & Loans Payable: | I22: =SUM(I11:I17) -> 0 | K22: =SUM(K11:K17) -> 0 | M22: =SUM(M11:M17) -> 0 | O22: Disclosures | Q22: Line 563 | S22: Line 202
G23: Diocesan Loans Payable: | I23: =I10 -> 0 | K23: =K10 -> 0 | M23: =M10 -> 0 | O23: Disclosures | Q23: Line 563 | S23: Line 203 | U23: Any outstanding "EDA Loans" should also be reported on this schedule.
U25: Note | W25: Please forward a copy of the June 30, 2018 statement
G26: Total: | I26: =SUM(I22:I23) -> 0 | K26: =SUM(K22:K23) -> 0 | M26: =SUM(M22:M23) -> 0 | O26: - | Q26: - | S26: - | U26: for each mortgage or loan reported. You do not need to forward statements
U27: for loans from the Diocese.
A28: School
A29: # | C29: Financial | E29: Description | G29: Interest | I29: Payments This Fiscal Year | M29: Balance at
C30: Institution | G30: Rate | I30: Principal | K30: Interest | M30: 2022-06-30 | O30: Reference | Q30: Reference | S30: Reference
A32: 1 | C32: Diocese of Metuchen | E32: Diocesan Loans (formerly PAF) | G32: 0.00% | I32: 0 | K32: 0 | M32: 0 | O32: - | Q32: - | S32: -
A33: 2 | C33: Parish Church | E33: Inter-Parish Loan | G33: 0.00% | I33: 0 | K33: 0 | M33: 0 | O33: - | Q33: - | S33: -
A34: 3 | C34: Parish Cemetery | E34: Inter-Parish Loan | G34: 0.00% | I34: 0 | K34: 0 | M34: 0 | O34: - | Q34: - | S34: -
A35: 4 | C35: - | E35: - | G35: 0.00% | I35: 0 | K35: 0 | M35: 0 | O35: - | Q35: - | S35: -
A36: 5 | C36: - | E36: - | G36: 0.00% | I36: 0 | K36: 0 | M36: 0 | O36: - | Q36: - | S36: -
A37: 6 | C37: - | E37: - | G37: 0.00% | I37: 0 | K37: 0 | M37: 0 | O37: - | Q37: - | S37: -
A38: 7 | C38: - | E38: - | G38: 0.00% | I38: 0 | K38: 0 | M38: 0 | O38: - | Q38: - | S38: -
A39: 8 | C39: - | E39: - | G39: 0.00% | I39: 0 | K39: 0 | M39: 0 | O39: - | Q39: - | S39: -
G42: Total: | I42: =SUM(I32:I41) -> 0 | K42: =SUM(K32:K41) -> 0 | M42: =SUM(M32:M41) -> 0 | O42: - | Q42: - | S42: -
G44: Mortgages & Loans Payable: | I44: =SUM(I33:I39) -> 0 | K44: =SUM(K33:K39) -> 0 | M44: =SUM(M33:M39) -> 0 | O44: Disclosures | Q44: Line 563 | S44: Line 202
G45: Diocesan Loans Payable: | I45: =I32 -> 0 | K45: =K32 -> 0 | M45: =M32 -> 0 | O45: Disclosures | Q45: Line 563 | S45: Line 203
G48: Total: | I48: =SUM(I44:I45) -> 0 | K48: =SUM(K44:K45) -> 0 | M48: =SUM(M44:M45) -> 0 | O48: - | Q48: - | S48: -
A50: Cemetery
A51: # | C51: Financial | E51: Description | G51: Interest | I51: Payments This Fiscal Year | M51: Balance at
C52: Institution | G52: Rate | I52: Principal | K52: Interest | M52: 2022-06-30 | O52: Reference | Q52: Reference | S52: Reference
A54: 1 | C54: Diocese of Metuchen | E54: Diocesan Loans (formerly PAF) | G54: 0.00% | I54: 0 | K54: 0 | M54: 0 | O54: - | Q54: - | S54: -
A55: 2 | C55: Parish Church | E55: Inter-Parish Loan | G55: 0.00% | I55: 0 | K55: 0 | M55: 0 | O55: - | Q55: - | S55: -
A56: 3 | C56: Parish School | E56: Inter-Parish Loan | G56: 0.00% | I56: 0 | K56: 0 | M56: 0 | O56: - | Q56: - | S56: -
A57: 4 | C57: - | E57: - | G57: 0.00% | I57: 0 | K57: 0 | M57: 0 | O57: - | Q57: - | S57: -
A58: 5 | C58: - | E58: - | G58: 0.00% | I58: 0 | K58: 0 | M58: 0 | O58: - | Q58: - | S58: -
A59: 6 | C59: - | E59: - | G59: 0.00% | I59: 0 | K59: 0 | M59: 0 | O59: - | Q59: - | S59: -
G62: Total: | I62: =SUM(I54:I61) -> 0 | K62: =SUM(K54:K61) -> 0 | M62: =SUM(M54:M61) -> 0 | O62: - | Q62: - | S62: -
G64: Mortgages & Loans Payable: | I64: =SUM(I55:I59) -> 0 | K64: =SUM(K55:K59) -> 0 | M64: =SUM(M55:M59) -> 0 | O64: Disclosures | Q64: Line 563 | S64: Line 202
G65: Diocesan Loans Payable: | I65: =SUM(I54) -> 0 | K65: =SUM(K54) -> 0 | M65: =SUM(M54) -> 0 | O65: Disclosures | Q65: Line 563 | S65: Line 203
G68: Total: | I68: =SUM(I64:I65) -> 0 | K68: =SUM(K64:K65) -> 0 | M68: =SUM(M64:M65) -> 0

Sheet Sch. 5
L1: Schedule 5
A3: Other Statement of Position Accounts
C6: Accounts Payable
C7: Description | E7: Church & | G7: School & | P7: Instructions | R7: "Schedule 5 - Other Statement of Position Accounts" is
E8: Rectory | G8: Convent | I8: Cemetery | K8: Total | N8: Reference | P8: divided into three sections which are intended to provide itemized details of the
P9: totals reported on Lines 200 (Accounts Payable), 207 (Deferred Revenue), and 209
A10: 1 | E10: 0 | G10: 0 | I10: 0 | K10: =SUM(E10:I10) -> 0 | N10: - | P10: (Other Liabilities). As each section is completed, totals will automatically populate
A11: 2 | E11: 0 | G11: 0 | I11: 0 | K11: =SUM(E11:I11) -> 0 | N11: - | P11: to the correct places on the Statement of Financial Position, as indicated in the
A12: 3 | E12: 0 | G12: 0 | I12: 0 | K12: 0 | N12: - | P12: Reference column.
A13: 4 | E13: 0 | G13: 0 | I13: 0 | K13: =SUM(E13:I13) -> 0 | N13: -
A14: 5 | E14: 0 | G14: 0 | I14: 0 | K14: =SUM(E14:I14) -> 0 | N14: - | P14: Each liability should be reported as a separate line item. If more space is needed,
A15: 6 | E15: 0 | G15: 0 | I15: 0 | K15: =SUM(E15:I15) -> 0 | N15: - | P15: indicate "See Attached Schedule" on the description line, enter totals, and forward
A16: 7 | E16: 0 | G16: 0 | I16: 0 | K16: 0 | N16: - | P16: an itemized schedule providing details. Parishes should only report liabilities on
A17: 8 | E17: 0 | G17: 0 | I17: 0 | K17: 0 | N17: - | P17: Schedule 5 which do not fit in other categories on the Statement of Financial Position.
A18: 9 | E18: 0 | G18: 0 | I18: 0 | K18: 0 | N18: -
A19: 10 | E19: 0 | G19: 0 | I19: 0 | K19: =SUM(E19:I19) -> 0 | N19: - | P19: Please provide descriptions beyond miscellaneous, various, assorted, etc.
P21: Note | R21: Report the balance of funds owed to third parties for goods or
C22: Total Accounts Payable @ 06/30/22: | E22: =SUM(E10:E21) -> 0 | G22: =SUM(G10:G21) -> 0 | I22: =SUM(I10:I21) -> 0 | K22: =SUM(K10:K21) -> 0 | N22: Line 200 | P22: services received by the Parish but not yet paid for as Accounts Payable. Include any
P23: amounts from Schedule 6 which have been received in collections but which have not
P24: yet been disbursed to the final recipients.
C25: Deferred Revenue
C26: Description | E26: Church & | G26: School &
E27: Rectory | G27: Convent | I27: Cemetery | K27: Total | N27: Reference
A29: 1 | E29: 0 | G29: 0 | I29: 0 | K29: =SUM(E29:I29) -> 0 | N29: -
A30: 2 | E30: 0 | G30: 0 | I30: 0 | K30: =SUM(E30:I30) -> 0 | N30: -
A31: 3 | E31: 0 | G31: 0 | I31: 0 | K31: =SUM(E31:I31) -> 0 | N31: -
A32: 4 | E32: 0 | G32: 0 | I32: 0 | K32: =SUM(E32:I32) -> 0 | N32: -
A33: 5 | E33: 0 | G33: 0 | I33: 0 | K33: 0 | N33: -
A34: 6 | E34: 0 | G34: 0 | I34: 0 | K34: =SUM(E34:I34) -> 0 | N34: - | P34: Note | R34: Report funds received by the Parish which have not yet been
A35: 7 | E35: 0 | G35: 0 | I35: 0 | K35: =SUM(E35:I35) -> 0 | N35: - | P35: earned as Deferred Revenue. Examples include monies received for the payment of
A36: 8 | E36: 0 | G36: 0 | I36: 0 | K36: 0 | N36: - | P36: upcoming religious education instruction or next semester's school tuition. Revenues
A37: 9 | E37: 0 | G37: 0 | I37: 0 | K37: 0 | N37: - | P37: are later recognized in the Statement of Activities during the period in which they are
A38: 10 | E38: 0 | G38: 0 | I38: 0 | K38: 0 | N38: - | P38: earned.
N39: -
P40: The Parish must have cash on hand to offset all Deferred Revenue reported here.
C41: Total Deferred Revenue @ 06/30/22: | E41: =SUM(E29:E40) -> 0 | G41: =SUM(G29:G40) -> 0 | I41: =SUM(I29:I40) -> 0 | K41: =SUM(K29:K40) -> 0 | N41: Line 207
P42: Do not include any "reserves" of Parish funds, which should be reported on Line 209
P43: (Other Liabilities) using the final section of this schedule.
C44: Other Liabilities
C45: Description | E45: Church & | G45: School &
E46: Rectory | G46: Convent | I46: Cemetery | K46: Total | N46: Reference
A48: 1 | E48: 0 | G48: 0 | I48: 0 | K48: =SUM(E48:I48) -> 0 | N48: -
A49: 2 | E49: 0 | G49: 0 | I49: 0 | K49: =SUM(E49:I49) -> 0 | N49: -
A50: 3 | E50: 0 | G50: 0 | I50: 0 | K50: =SUM(E50:I50) -> 0 | N50: -
A51: 4 | E51: 0 | G51: 0 | I51: 0 | K51: =SUM(E51:I51) -> 0 | N51: -
A52: 5 | E52: 0 | G52: 0 | I52: 0 | K52: 0 | N52: -
A53: 6 | E53: 0 | G53: 0 | I53: 0 | K53: =SUM(E53:I53) -> 0 | N53: - | P53: Note | R53: Report funds designated by Parish management for specific
A54: 7 | E54: 0 | G54: 0 | I54: 0 | K54: =SUM(E54:I54) -> 0 | N54: - | P54: purposes, as well as funds held in trust for Parish organizations, as Other Liabilities.
A55: 8 | E55: 0 | G55: 0 | I55: 0 | K55: 0 | N55: -
A56: 9 | E56: 0 | G56: 0 | I56: 0 | K56: 0 | N56: - | P56: The Parish must have cash on hand to offset all liabilities reported here.
A57: 10 | E57: 0 | G57: 0 | I57: 0 | K57: 0 | N57: -
P58: Do not include any funds owed to third parties for goods or services received, which
P59: should be reported on Line 200 (Accounts Payable) using the first section of this
C60: Total Other Liabilities @ 06/30/22: | E60: =SUM(E48:E59) -> 0 | G60: =SUM(G48:G59) -> 0 | I60: =SUM(I48:I59) -> 0 | K60: =SUM(K48:K59) -> 0 | N60: Line 209 | P60: schedule.

Sheet Sch. 6
I1: Schedule 6
B3: Special Weekend Collections
B6: Diocesan Collections
B7: Number | D7: Description | H7: Amount | K7: Reference | M7: Instructions | O7: "Schedule 6 - Special Weekend Collections" lists trust
M8: accounts for funds which are held in escrow for an eventual final recipient.
B9: 1 | D9: Together in Charity | H9: 0 | K9: -
B10: 2 | D10: Foundation for Catholic Education | H10: 0 | K10: - | M10: The collections listed here are detailed in the documents "Schedule of (Diocesan/
B11: 3 | D11: Catholic Press Month | H11: 0 | K11: - | M11: non-Diocesan) Collections” which are available on the Diocese's website. The
B12: 4 | D12: Retirement Collection for Diocesan Clergy | H12: 0 | K12: - | M12: document covers a calendar year.
B13: - | D13: Other: | H13: 0 | K13: -
B14: - | D14: Other: | H14: 0 | K14: - | M14: The 2017 document describes the collections for the first half of the fiscal year and
B15: - | D15: Other: | H15: 0 | K15: - | M15: the 2018 document describes the collections for the second half of the fiscal year.
K17: Line 429 | M17: A summary of the documents is presented below to assist Parishes with reporting
F18: Total Diocesan Collections: | H18: =SUM(H9:H16) -> 0 | K18: Line 565 | M18: collections on the correct line of this schedule.
M20: Please enter a brief description for any items reported as “Other” Diocesan
M21: Collections or National & Missionary Appeals.
B22: National & Missionary Appeals
B23: Number | D23: Description | H23: Amount | K23: Reference | M23: Note | O23: Parishes should record the revenue, expense, and a
M24: corresponding liability in their books as special collections are taken. When the
B25: 5 | D25: The Holy Land Collection | H25: 0 | K25: - | M25: collection is remitted to the final recipient, the Parish should reverse the liability. If
B26: 6 | D26: Catholic Relief Services | H26: 0 | K26: - | M26: funds have been collected but not disbursed, the liability created upon their
B27: 7 | D27: Development of the People | H27: 0 | K27: - | M27: collection should be reported on Line 200 by making an entry on Schedule 5.
B28: 8 | D28: Catholic Communication Campaign | H28: 0 | K28: -
B29: 9 | D29: Peter's Pence Collection | H29: 0 | K29: - | M29: Description of Collection | R29: Collected
B30: 10 | D30: Campaign for Human Development | H30: 0 | K30: - | M30: ** | N30: The Mission Cooperative Plan | R30: Before last weekend in August
B31: 11 | D31: Retirement Fund for the Religious | H31: 0 | K31: - | M31: 9 | N31: Peter’s Pence Collection | R31: September 9 & 10, 2017
B32: ** | D32: World Mission Sunday | H32: 0 | K32: - | M32: ** | N32: World Mission Sunday | R32: October 22, 2017
B33: ** | D33: Mission Cooperative Plan | H33: 0 | K33: - | M33: 10 | N33: Campaign for Human Development | R33: Weekend before Thanksgiving
B34: - | D34: Rice Bowl Collection | H34: 0 | K34: - | M34: 11 | N34: Retirement Fund for Religious | R34: December 2 & 3, 2017
B35: - | D35: Other: | H35: 0 | K35: - | M35: 1 | N35: Together in Charity | R35: January 6 & 7, 2018
B36: - | D36: Other: | H36: 0 | K36: - | M36: 2 | N36: Foundation for Catholic Education | R36: January 20 & 21, 2018
B37: - | D37: Other: | H37: 0 | K37: - | M37: 3 | N37: Catholic Press Month | R37: Month of February
B38: - | D38: Other: | H38: 0 | K38: - | M38: 4 | N38: Retirement for Diocesan Clergy | R38: Palm Sunday
M39: 5 | N39: The Holy Land Collection | R39: Good Friday
K40: Line 431 | M40: 6 | N40: Catholic Relief Services | R40: April 14 & 15, 2018
F41: Total National & Missionary Appeals: | H41: =SUM(H25:H40) -> 0 | K41: Line 566 | M41: 7 | N41: Development of the People | R41: April 28 & 29, 2018
M42: 8 | N42: Catholic Communication Campaign | R42: May 5 & 6, 2018

Sheet Sch. 7
L1: Schedule 7
A3: Other Statement of Activity Accounts
C6: Other Revenue
C7: Description | E7: Church & | G7: School & | P7: Instructions | R7: "Schedule 7 - Other Statement of Activity Accounts" is
E8: Rectory | G8: Convent | I8: Cemetery | K8: Total | N8: Reference | P8: divided into two sections which are intended to provide itemized details of the
P9: totals reported on Lines 454 (Other Revenue) and 572 (Other Fixed Expenses).
A10: 1 | E10: 0 | G10: 0 | I10: 0 | K10: =SUM(E10:I10) -> 0 | N10: - | P10: As each section is completed, totals will automatically populate to the correct
A11: 2 | E11: 0 | G11: 0 | I11: 0 | K11: =SUM(E11:I11) -> 0 | N11: - | P11: places on the Statement of Financial Position, as indicated in the Reference
A12: 3 | E12: 0 | G12: 0 | I12: 0 | K12: =SUM(E12:I12) -> 0 | N12: - | P12: column.
A13: 4 | E13: 0 | G13: 0 | I13: 0 | K13: 0 | N13: -
A14: 5 | E14: 0 | G14: 0 | I14: 0 | K14: 0 | N14: - | P14: Each category of revenue or expense should be itemized.
A15: 6 | E15: 0 | G15: 0 | I15: 0 | K15: 0 | N15: -
A16: 7 | E16: 0 | G16: 0 | I16: 0 | K16: 0 | N16: - | P16: If more space is needed, indicate "See Attached Schedule" on the description
A17: 8 | E17: 0 | G17: 0 | I17: 0 | K17: =SUM(E17:I17) -> 0 | N17: - | P17: line, enter totals, and forward an itemized schedule providing details. Parishes
A18: 9 | E18: 0 | G18: 0 | I18: 0 | K18: 0 | N18: - | P18: should only report revenues and expenses on Schedule 7 which do not fit in
A19: 10 | E19: 0 | G19: 0 | I19: 0 | K19: =SUM(E19:I19) -> 0 | N19: - | P19: other categories on the Statement of Activities.
A20: 11 | E20: 0 | G20: 0 | I20: 0 | K20: 0 | N20: -
A21: 12 | E21: 0 | G21: 0 | I21: 0 | K21: 0 | N21: - | P21: Please provide descriptions beyond miscellaneous, various, assorted, etc.…
A22: 13 | E22: 0 | G22: 0 | I22: 0 | K22: =SUM(E22:I22) -> 0 | N22: -
A23: 14 | E23: 0 | G23: 0 | I23: 0 | K23: 0 | N23: - | P23: Note | R23: Line 454 (Other Revenue) has historically been an
A24: 15 | E24: 0 | G24: 0 | I24: 0 | K24: 0 | N24: - | P24: account where many Parishes have made reporting errors.
P25: - | Q25: Collections should never be reported here. Collections may be
Q26: reported on Line 425 (Authorized Collections) with written
C27: Total Other Revenue @ 06/30/22: | E27: =SUM(E10:E26) -> 0 | G27: =SUM(G10:G26) -> 0 | I27: =SUM(I10:I26) -> 0 | K27: =SUM(K10:K26) -> 0 | N27: Line 454 | Q27: permission from the Bishop. All other collections must be reported
Q28: on Lines 400-403 or Schedule 6 - Special Weekend Collections.
P29: - | Q29: Expenses should never be netted with revenues here.
C30: Other Fixed Expenses
C31: Description | E31: Church & | G31: School & | P31: Donations given with a stipulation that they be utilized for a specific purpose
E32: Rectory | G32: Convent | I32: Cemetery | K32: Total | N32: Reference | P32: within the Parish may be reported here. The Parish should retain documentation
P33: supporting the designation of these gifts, which will be requested by the
A34: 1 | E34: 0 | G34: 0 | I34: 0 | K34: =SUM(E34:I34) -> 0 | N34: - | P34: Diocesan Internal Audit Department during their next review.
A35: 2 | E35: 0 | G35: 0 | I35: 0 | K35: =SUM(E35:I35) -> 0 | N35: -
A36: 3 | E36: 0 | G36: 0 | I36: 0 | K36: =SUM(E36:I36) -> 0 | N36: -
A37: 4 | E37: 0 | G37: 0 | I37: 0 | K37: =SUM(E37:I37) -> 0 | N37: -
A38: 5 | E38: 0 | G38: 0 | I38: 0 | K38: =SUM(E38:I38) -> 0 | N38: -
A39: 6 | E39: 0 | G39: 0 | I39: 0 | K39: 0 | N39: -
A40: 7 | E40: 0 | G40: 0 | I40: 0 | K40: 0 | N40: -
A41: 8 | E41: 0 | G41: 0 | I41: 0 | K41: 0 | N41: -
A42: 9 | E42: 0 | G42: 0 | I42: 0 | K42: 0 | N42: -
A43: 10 | E43: 0 | G43: 0 | I43: 0 | K43: =SUM(E43:I43) -> 0 | N43: -
A44: 11 | E44: 0 | G44: 0 | I44: 0 | K44: =SUM(E44:I44) -> 0 | N44: -
A45: 12 | E45: 0 | G45: 0 | I45: 0 | K45: =SUM(E45:I45) -> 0 | N45: -
A46: 13 | E46: 0 | G46: 0 | I46: 0 | K46: 0 | N46: -
A47: 14 | E47: 0 | G47: 0 | I47: 0 | K47: 0 | N47: -
A48: 15 | E48: 0 | G48: 0 | I48: 0 | K48: 0 | N48: -
C51: Total Other Expenses @ 06/30/22: | E51: =SUM(E34:E50) -> 0 | G51: =SUM(G34:G50) -> 0 | I51: =SUM(I34:I50) -> 0 | K51: =SUM(K34:K50) -> 0 | N51: Line 572

Sheet Sch. 8
L1: Schedule 8
B3: Prior Year Worksheet
B5: Statement of Position from the 2020-2021
B6: "Parish Financial Statement & Report"
F8: Church & | H8: School &
F9: Rectory | H9: Convent | J9: Cemetery | L9: Total | N9: Reference
A10: 2020-2021 Current Assets: | P10: Instructions | R10: "Schedule 8 - Prior Year Worksheet" collects information
B11: 100 | D11: Cash | F11: 0 | H11: 0 | J11: 0 | L11: =SUM(F11:J11) -> 0 | N11: - | P11: about assets and liabilities from the previous fiscal year's Statement of Financial
B12: 101 | D12: Petty Cash | F12: 0 | H12: 0 | J12: 0 | L12: 0 | N12: - | P12: Position which is necessary in order for the statements to function properly.
B13: 102 | D13: Investment Management Program | F13: 0 | H13: 0 | J13: 0 | L13: 0 | N13: -
B14: 104 | D14: External Investments | F14: 0 | H14: 0 | J14: 0 | L14: 0 | N14: - | P14: Enter last year’s balances as reported on the Statement of Position in the 2016-
B15: 105 | D15: Mortgages and Loans Receivable | F15: 0 | H15: 0 | J15: 0 | L15: =SUM(F15:J15) -> 0 | N15: - | P15: 2017 Parish Financial Statement & Report. The schedule is organized in a similar
B16: 107 | D16: Accounts Receivable | F16: 0 | H16: 0 | J16: 0 | L16: =SUM(F16:J16) -> 0 | N16: - | P16: layout to the Statement of Financial Position, and is split into Church, School,
B17: 108 | D17: Prepaid Expense | F17: 0 | H17: 0 | J17: 0 | L17: 0 | N17: - | P17: and Cemetery columns.
B18: 109 | D18: Scrip Inventory | F18: 0 | H18: 0 | J18: 0 | L18: 0 | N18: -
P19: As each section is completed, totals will automatically populate to the correct
A20: 2020-2021 Fixed Assets: | P20: places on the Statements, as indicated in the Reference column.
B21: 110 | D21: Land | F21: 0 | H21: 0 | J21: 0 | L21: =SUM(F21:J21) -> 0 | N21: Line 110
B22: 111 | D22: Buildings | F22: 0 | H22: 0 | J22: 0 | L22: =SUM(F22:J22) -> 0 | N22: Line 111 | P22: Note | R22: Any adjustments made during the review of your Parish
B23: 112 | D23: Building Improvements | F23: 0 | H23: 0 | J23: 0 | L23: =SUM(F23:J23) -> 0 | N23: Line 112 | P23: Financial Statement & Report for the fiscal year ended June 30, 2017 must be
B24: 113 | D24: Vehicles | F24: 0 | H24: 0 | J24: 0 | L24: =SUM(F24:J24) -> 0 | N24: Line 113 | P24: reflected on this schedule.
B25: 114 | D25: Furniture & Equipment | F25: 0 | H25: 0 | J25: 0 | L25: =SUM(F25:J25) -> 0 | N25: Line 114
A27: 2020-2021 Accumulated Depreciation:
B28: 115 | D28: Buildings | F28: 0 | H28: 0 | J28: 0 | L28: =SUM(F28:J28) -> 0 | N28: Line 115
B29: 116 | D29: Building Improvements | F29: 0 | H29: 0 | J29: 0 | L29: =SUM(F29:J29) -> 0 | N29: Line 116
B30: 117 | D30: Vehicles | F30: 0 | H30: 0 | J30: 0 | L30: =SUM(F30:J30) -> 0 | N30: Line 117
B31: 118 | D31: Furniture & Equipment | F31: 0 | H31: 0 | J31: 0 | L31: =SUM(F31:J31) -> 0 | N31: Line 118
A33: 2020-2021 Liabilities:
B34: 200 | D34: Miscellaneous Accounts Payable | F34: 0 | H34: 0 | J34: 0 | L34: =SUM(F34:J34) -> 0 | N34: -
B35: 201 | D35: Assessments Payable | F35: 0 | H35: 0 | J35: 0 | L35: =SUM(F35:J35) -> 0 | N35: -
B36: 202 | D36: Mortgages and Loans Payable | F36: 0 | H36: 0 | J36: 0 | L36: 0 | N36: -
B37: 203 | D37: IMP Loans Payable | F37: 0 | H37: 0 | J37: 0 | L37: 0 | N37: -
B38: 204 | D38: Stipends Payable | F38: 0 | H38: 0 | J38: 0 | L38: 0 | N38: -
B39: 205 | D39: Pension Contribution Payable | F39: 0 | H39: 0 | J39: 0 | L39: 0 | N39: -
B40: 206 | D40: Insurance Payable | F40: 0 | H40: 0 | J40: 0 | L40: 0 | N40: -
B41: 207 | D41: Deferred Revenue | F41: 0 | H41: 0 | J41: 0 | L41: 0 | N41: -
B42: 208 | D42: Payroll Liabilities | F42: 0 | H42: 0 | J42: 0 | L42: =SUM(F42:J42) -> 0 | N42: -
B43: 209 | D43: Other Liabilities | F43: 0 | H43: 0 | J43: 0 | L43: =SUM(F43:J43) -> 0 | N43: -
D46: 2020-2021 Ending Net Assets: | F46: =SUM(F11:F31)-SUM(F34:F43) -> 0 | H46: =SUM(H11:H31)-SUM(H34:H43) -> 0 | J46: =SUM(J11:J31)-SUM(J34:J43) -> 0 | L46: =SUM(L11:L31)-SUM(L34:L43) -> 0 | N46: Disclosures

Sheet Accounting_Review
B1: Financial Statement Review Form | M1: Parish ID | O1: Values Sent to Access | Q1: Original | S1: Override (9XX) | Z1: Send to Access: | AA1: ID | AB1: Parish_IDFK | AC1: FYE | AD1: 100 | AE1: 101 | AF1: 102 | AG1: 104 | AH1: 105 | AI1: 107 | AJ1: 108 | AK1: 109 | AL1: 110 | AM1: 115 | AN1: 195 | AO1: 199 | AP1: 200 | AQ1: 201 | AR1: 202 | AS1: 203 | AT1: 204 | AU1: 205 | AV1: 206 | AW1: 207 | AX1: 208 | AY1: 209 | AZ1: 299 | BA1: 300 | BB1: 400 | BC1: 401 | BD1: 402 | BE1: 403 | BF1: 405 | BG1: 406 | BH1: 410 | BI1: 411 | BJ1: 418 | BK1: 420 | BL1: 424 | BM1: 425 | BN1: 426 | BO1: 427 | BP1: 428 | BQ1: 429 | BR1: 431 | BS1: 432 | BT1: 433 | BU1: 440 | BV1: 441 | BW1: 442 | BX1: 443 | BY1: 444 | BZ1: 445 | CA1: 447 | CB1: 450 | CC1: 451 | CD1: 452 | CE1: 453 | CF1: 454 | CG1: 460 | CH1: 497 | CI1: 498 | CJ1: 499 | CK1: 500 | CL1: 501 | CM1: 502 | CN1: 502-1 | CO1: 502-2 | CP1: 502-3 | CQ1: 502-4 | CR1: 503 | CS1: 504 | CT1: 505 | CU1: 506 | CV1: 507 | CW1: 508 | CX1: 510 | CY1: 511 | CZ1: 512 | DA1: 513 | DB1: 514 | DC1: 515 | DD1: 516 | DE1: 517 | DF1: 518 | DG1: 519 | DH1: 520 | DI1: 521 | DJ1: 522 | DK1: 523 | DL1: 524 | DM1: 525 | DN1: 526 | DO1: 527 | DP1: 528 | DQ1: 529 | DR1: 540 | DS1: 541 | DT1: 542 | DU1: 543 | DV1: 545 | DW1: 546 | DX1: 547 | DY1: 548 | DZ1: 550 | EA1: 551 | EB1: 552 | EC1: 553 | ED1: 554 | EE1: 555 | EF1: 557 | EG1: 558 | EH1: 559 | EI1: 560 | EJ1: 561 | EK1: 562 | EL1: 563 | EM1: 564 | EN1: 565 | EO1: 566 | EP1: 567 | EQ1: 568 | ER1: 569 | ES1: 570 | ET1: 571 | EU1: 572 | EV1: 573 | EW1: 593 | EX1: 594 | EY1: 595 | EZ1: 596 | FA1: 597 | FB1: 598 | FC1: 599 | FD1: 901 | FE1: 902 | FF1: 903 | FG1: 904 | FH1: 905 | FI1: 906 | FJ1: 907 | FK1: 908 | FL1: 909 | FM1: 910 | FN1: 911 | FO1: 912 | FP1: 913 | FQ1: 914 | FR1: 915 | FS1: 916 | FT1: 917 | FU1: 918 | FV1: 919 | FW1: 996 | FX1: 997 | FY1: 998 | FZ1: 999 | GA1: FINAL
B2: =Cover!E9&", "&Cover!E11&" ("&TEXT(Accounting_Review!M2-20000,"000")&")" -> -, - (032) | M2: 20032 | O2: Deductible Rent (410/996) | Q2: ='Activities 1'!L20 -> 0 | S2: =Q2 -> 0 | AA2: =AB2 -> 20032 | AB2: =M2 -> 20032 | AC2: =M5 -> 2018 | AD2: =Position!F$10 -> $0.00 | AE2: =Position!F$11 -> $0.00 | AF2: =Position!F$12 -> $0.00 | AG2: =Position!F$13 -> $0.00 | AH2: =Position!F$14 -> $0.00 | AI2: =Position!F$15 -> $0.00 | AJ2: =Position!F$16 -> $0.00 | AK2: =Position!F$17 -> $0.00 | AL2: =SUM(Position!F$20:F$24) -> $0.00 | AM2: =SUM(Position!F$27:F$30) -> $0.00 | AN2: $0.00 | AO2: =Position!F$33 -> $0.00 | AP2: =Position!F$36 -> $0.00 | AQ2: =Position!F$37 -> $0.00 | AR2: =Position!F$38 -> $0.00 | AS2: =Position!F$39 -> $0.00 | AT2: =Position!F$40 -> $0.00 | AU2: =Position!F$41 -> $0.00 | AV2: =Position!F$42 -> $0.00 | AW2: =Position!F$43 -> $0.00 | AX2: =Position!F$44 -> $0.00 | AY2: =Position!F$45 -> $0.00 | AZ2: =Position!F$48 -> $0.00 | BA2: =Position!F$50 -> $0.00 | BB2: ='Activities 1'!F$10 -> $0.00 | BC2: ='Activities 1'!F$11 -> $0.00 | BD2: ='Activities 1'!F$12 -> $0.00 | BE2: ='Activities 1'!F$13 -> $0.00 | BF2: ='Activities 1'!F$18 -> $0.00 | BG2: ='Activities 1'!F$19 -> $0.00 | BH2: ='Activities 1'!F$20 -> $0.00 | BI2: ='Activities 1'!F$21 -> $0.00 | BJ2: ='Activities 1'!F$22 -> $0.00 | BK2: ='Activities 1'!F$30 -> $0.00 | BL2: ='Activities 1'!F$31 -> $0.00 | BM2: ='Activities 1'!F$32 -> $0.00 | BN2: ='Activities 1'!F$33 -> $0.00 | BO2: ='Activities 1'!F$34 -> $0.00 | BP2: ='Activities 1'!F$35 -> $0.00 | BQ2: ='Activities 1'!F$36 -> $0.00 | BR2: ='Activities 1'!F$37 -> $0.00 | BS2: ='Activities 1'!F$38 -> $0.00 | BT2: ='Activities 1'!F$39 -> $0.00 | BU2: ='Activities 1'!F$40 -> $0.00 | BV2: ='Activities 1'!F$41 -> $0.00 | BW2: ='Activities 1'!F$42 -> $0.00 | BX2: ='Activities 1'!F$43 -> $0.00 | BY2: ='Activities 1'!F$44 -> $0.00 | BZ2: $0.00 | CA2: ='Activities 1'!F$45 -> $0.00 | CB2: ='Activities 1'!F$46 -> $0.00 | CC2: ='Activities 1'!F$47 -> $0.00 | CD2: ='Activities 1'!F$48 -> $0.00 | CE2: ='Activities 1'!F$49 -> $0.00 | CF2: ='Activities 1'!F$50 -> $0.00 | CG2: ='Activities 1'!F$51 -> $0.00 | CH2: ='Activities 1'!F$27 -> $0.00 | CI2: ='Activities 1'!F$54 -> $0.00 | CJ2: ='Activities 1'!F$56 -> $0.00 | CK2: ='Activities 2'!F$10 -> $0.00 | CL2: ='Activities 2'!F$11 -> $0.00 | CM2: ='Activities 2'!F$12 -> $0.00 | CN2: ='Activities 2'!F$13 -> $0.00 | CO2: ='Activities 2'!F$14 -> $0.00 | CP2: ='Activities 2'!F$15 -> $0.00 | CQ2: ='Activities 2'!F$16 -> $0.00 | CR2: ='Activities 2'!F$17 -> $0.00 | CS2: ='Activities 2'!F$18 -> $0.00 | CT2: ='Activities 2'!F$19 -> $0.00 | CU2: ='Activities 2'!F$20 -> $0.00 | CV2: ='Activities 2'!F$21 -> $0.00 | CW2: ='Activities 2'!F$22 -> $0.00 | CX2: ='Activities 2'!F$23 -> $0.00 | CY2: ='Activities 2'!F$29 -> $0.00 | CZ2: ='Activities 2'!F$30 -> $0.00 | DA2: ='Activities 2'!F$31 -> $0.00 | DB2: ='Activities 2'!F$32 -> $0.00 | DC2: ='Activities 2'!F$33 -> $0.00 | DD2: ='Activities 2'!F$34 -> $0.00 | DE2: ='Activities 2'!F$35 -> $0.00 | DF2: ='Activities 2'!F$36 -> $0.00 | DG2: ='Activities 2'!F$37 -> $0.00 | DH2: ='Activities 2'!F$43 -> $0.00 | DI2: ='Activities 2'!F$44 -> $0.00 | DJ2: ='Activities 2'!F$45 -> $0.00 | DK2: ='Activities 2'!F$46 -> $0.00 | DL2: ='Activities 2'!F$47 -> $0.00 | DM2: ='Activities 2'!F$48 -> $0.00 | DN2: ='Activities 2'!F$49 -> $0.00 | DO2: ='Activities 2'!F$50 -> $0.00 | DP2: ='Activities 2'!F$51 -> $0.00 | DQ2: ='Activities 2'!F$52 -> $0.00 | DR2: ='Activities 3'!F$10 -> $0.00 | DS2: $0.00 | DT2: ='Activities 3'!F$11 -> $0.00 | DU2: ='Activities 3'!F$12 -> $0.00 | DV2: ='Activities 3'!F$13 -> $0.00 | DW2: ='Activities 3'!F$14 -> $0.00 | DX2: ='Activities 3'!F$15 -> $0.00 | DY2: ='Activities 3'!F$16 -> $0.00 | DZ2: ='Activities 3'!F$22 -> $0.00 | EA2: ='Activities 3'!F$23 -> $0.00 | EB2: ='Activities 3'!F$24 -> $0.00 | EC2: ='Activities 3'!F$25 -> $0.00 | ED2: ='Activities 3'!F$26 -> $0.00 | EE2: ='Activities 3'!F$27 -> $0.00 | EF2: $0.00 | EG2: $0.00 | EH2: $0.00 | EI2: $0.00 | EJ2: $0.00 | EK2: $0.00 | EL2: ='Activities 3'!F$33 -> $0.00 | EM2: ='Activities 3'!F$34 -> $0.00 | EN2: ='Activities 3'!F$35 -> $0.00 | EO2: ='Activities 3'!F$36 -> $0.00 | EP2: ='Activities 3'!F$37 -> $0.00 | EQ2: ='Activities 3'!F$38 -> $0.00 | ER2: ='Activities 3'!F$39 -> $0.00 | ES2: ='Activities 3'!F$40 -> $0.00 | ET2: ='Activities 3'!F$41 -> $0.00 | EU2: ='Activities 3'!F$42 -> $0.00 | EV2: =SUM('Activities 3'!F$43:F$46) -> $0.00 | EW2: ='Activities 3'!F$30 -> $0.00 | EX2: ='Activities 2'!F$26 -> $0.00 | EY2: ='Activities 2'!F$40 -> $0.00 | EZ2: ='Activities 2'!F$55 -> $0.00 | FA2: ='Activities 3'!F$19 -> $0.00 | FB2: ='Activities 3'!F$49 -> $0.00 | FC2: ='Activities 3'!F$51 -> $0.00 | FD2: =Cover!$G$15 -> 0 | FE2: =Cover!$G$17 -> 0 | FF2: =Disclosures!$V$65 -> 0 | FG2: =Disclosures!$V$66 -> 0 | FH2: 0 | FI2: 0 | FJ2: 0 | FK2: 0 | FL2: 0 | FM2: 0 | FN2: 0 | FO2: 0 | FP2: 0 | FQ2: 0 | FR2: 0 | FS2: 0 | FT2: 0 | FU2: 0 | FV2: 0 | FW2: =S2 -> 0 | FX2: =S3 -> 0 | FY2: =S4 -> 0 | FZ2: ='Activities 3'!F$53 -> $0.00 | GA2: =$M$8 -> TRUE
B3: FYE June 30, 2022 | O3: Loan Principle (Sch. 4/997) | Q3: ='Sch. 4'!I20 -> 0 | S3: =Q3 -> 0 | AA3: =AB3+10000 -> 30032 | AB3: =M2 -> 20032 | AC3: =M5 -> 2018 | AD3: =Position!H$10 -> $0.00 | AE3: =Position!H$11 -> $0.00 | AF3: =Position!H$12 -> $0.00 | AG3: =Position!H$13 -> $0.00 | AH3: =Position!H$14 -> $0.00 | AI3: =Position!H$15 -> $0.00 | AJ3: =Position!H$16 -> $0.00 | AK3: =Position!H$17 -> $0.00 | AL3: =SUM(Position!H$20:H$24) -> $0.00 | AM3: =SUM(Position!H$27:H$30) -> $0.00 | AN3: $0.00 | AO3: =Position!H$33 -> $0.00 | AP3: =Position!H$36 -> $0.00 | AQ3: =Position!H$37 -> $0.00 | AR3: =Position!H$38 -> $0.00 | AS3: =Position!H$39 -> $0.00 | AT3: =Position!H$40 -> $0.00 | AU3: =Position!H$41 -> $0.00 | AV3: =Position!H$42 -> $0.00 | AW3: =Position!H$43 -> $0.00 | AX3: =Position!H$44 -> $0.00 | AY3: =Position!H$45 -> $0.00 | AZ3: =Position!H$48 -> $0.00 | BA3: =Position!H$50 -> $0.00 | BB3: ='Activities 1'!H$10 -> $0.00 | BC3: ='Activities 1'!H$11 -> $0.00 | BD3: ='Activities 1'!H$12 -> $0.00 | BE3: ='Activities 1'!H$13 -> $0.00 | BF3: ='Activities 1'!H$18 -> $0.00 | BG3: ='Activities 1'!H$19 -> $0.00 | BH3: ='Activities 1'!H$20 -> $0.00 | BI3: ='Activities 1'!H$21 -> $0.00 | BJ3: ='Activities 1'!H$22 -> $0.00 | BK3: ='Activities 1'!H$30 -> $0.00 | BL3: ='Activities 1'!H$31 -> $0.00 | BM3: ='Activities 1'!H$32 -> $0.00 | BN3: ='Activities 1'!H$33 -> $0.00 | BO3: ='Activities 1'!H$34 -> $0.00 | BP3: ='Activities 1'!H$35 -> $0.00 | BQ3: ='Activities 1'!H$36 -> $0.00 | BR3: ='Activities 1'!H$37 -> $0.00 | BS3: ='Activities 1'!H$38 -> $0.00 | BT3: ='Activities 1'!H$39 -> $0.00 | BU3: ='Activities 1'!H$40 -> $0.00 | BV3: ='Activities 1'!H$41 -> $0.00 | BW3: ='Activities 1'!H$42 -> $0.00 | BX3: ='Activities 1'!H$43 -> $0.00 | BY3: ='Activities 1'!H$44 -> $0.00 | BZ3: $0.00 | CA3: ='Activities 1'!H$45 -> $0.00 | CB3: ='Activities 1'!H$46 -> $0.00 | CC3: ='Activities 1'!H$47 -> $0.00 | CD3: ='Activities 1'!H$48 -> $0.00 | CE3: ='Activities 1'!H$49 -> $0.00 | CF3: ='Activities 1'!H$50 -> $0.00 | CG3: ='Activities 1'!H$51 -> $0.00 | CH3: ='Activities 1'!H$27 -> $0.00 | CI3: ='Activities 1'!H$54 -> $0.00 | CJ3: ='Activities 1'!H$56 -> $0.00 | CK3: ='Activities 2'!H$10 -> $0.00 | CL3: ='Activities 2'!H$11 -> $0.00 | CM3: ='Activities 2'!H$12 -> $0.00 | CN3: ='Activities 2'!H$13 -> $0.00 | CO3: ='Activities 2'!H$14 -> $0.00 | CP3: ='Activities 2'!H$15 -> $0.00 | CQ3: ='Activities 2'!H$16 -> $0.00 | CR3: ='Activities 2'!H$17 -> $0.00 | CS3: ='Activities 2'!H$18 -> $0.00 | CT3: ='Activities 2'!H$19 -> $0.00 | CU3: ='Activities 2'!H$20 -> $0.00 | CV3: ='Activities 2'!H$21 -> $0.00 | CW3: ='Activities 2'!H$22 -> $0.00 | CX3: ='Activities 2'!H$23 -> $0.00 | CY3: ='Activities 2'!H$29 -> $0.00 | CZ3: ='Activities 2'!H$30 -> $0.00 | DA3: ='Activities 2'!H$31 -> $0.00 | DB3: ='Activities 2'!H$32 -> $0.00 | DC3: ='Activities 2'!H$33 -> $0.00 | DD3: ='Activities 2'!H$34 -> $0.00 | DE3: ='Activities 2'!H$35 -> $0.00 | DF3: ='Activities 2'!H$36 -> $0.00 | DG3: ='Activities 2'!H$37 -> $0.00 | DH3: ='Activities 2'!H$43 -> $0.00 | DI3: ='Activities 2'!H$44 -> $0.00 | DJ3: ='Activities 2'!H$45 -> $0.00 | DK3: ='Activities 2'!H$46 -> $0.00 | DL3: ='Activities 2'!H$47 -> $0.00 | DM3: ='Activities 2'!H$48 -> $0.00 | DN3: ='Activities 2'!H$49 -> $0.00 | DO3: ='Activities 2'!H$50 -> $0.00 | DP3: ='Activities 2'!H$51 -> $0.00 | DQ3: ='Activities 2'!H$52 -> $0.00 | DR3: ='Activities 3'!H$10 -> $0.00 | DS3: $0.00 | DT3: ='Activities 3'!H$11 -> $0.00 | DU3: ='Activities 3'!H$12 -> $0.00 | DV3: ='Activities 3'!H$13 -> $0.00 | DW3: ='Activities 3'!H$14 -> $0.00 | DX3: ='Activities 3'!H$15 -> $0.00 | DY3: ='Activities 3'!H$16 -> $0.00 | DZ3: ='Activities 3'!H$22 -> $0.00 | EA3: ='Activities 3'!H$23 -> $0.00 | EB3: ='Activities 3'!H$24 -> $0.00 | EC3: ='Activities 3'!H$25 -> $0.00 | ED3: ='Activities 3'!H$26 -> $0.00 | EE3: ='Activities 3'!H$27 -> $0.00 | EF3: $0.00 | EG3: $0.00 | EH3: $0.00 | EI3: $0.00 | EJ3: $0.00 | EK3: $0.00 | EL3: ='Activities 3'!H$33 -> $0.00 | EM3: ='Activities 3'!H$34 -> $0.00 | EN3: ='Activities 3'!H$35 -> $0.00 | EO3: ='Activities 3'!H$36 -> $0.00 | EP3: ='Activities 3'!H$37 -> $0.00 | EQ3: ='Activities 3'!H$38 -> $0.00 | ER3: ='Activities 3'!H$39 -> $0.00 | ES3: ='Activities 3'!H$40 -> $0.00 | ET3: ='Activities 3'!H$41 -> $0.00 | EU3: ='Activities 3'!H$42 -> $0.00 | EV3: =SUM('Activities 3'!H$43:H$46) -> $0.00 | EW3: ='Activities 3'!H$30 -> $0.00 | EX3: ='Activities 2'!H$26 -> $0.00 | EY3: ='Activities 2'!H$40 -> $0.00 | EZ3: ='Activities 2'!H$55 -> $0.00 | FA3: ='Activities 3'!H$19 -> $0.00 | FB3: ='Activities 3'!H$49 -> $0.00 | FC3: ='Activities 3'!H$51 -> $0.00 | FD3: 0 | FE3: 0 | FF3: 0 | FG3: 0 | FH3: =$Q$7 -> 0 | FI3: =$Q$8 -> 0 | FJ3: =$Q$9 -> 0 | FK3: =$Q$10 -> 0 | FL3: =$Q$11 -> 0 | FM3: =$Q$12 -> 0 | FN3: =$Q$13 -> 0 | FO3: =$Q$14 -> 0 | FP3: =$Q$15 -> 0 | FQ3: =$Q$16 -> 0 | FR3: =$S$17 -> 0 | FS3: 0 | FT3: 0 | FU3: 0 | FV3: 0 | FW3: 0 | FX3: 0 | FY3: 0 | FZ3: ='Activities 3'!H$53 -> $0.00 | GA3: =$M$8 -> TRUE
M4: 2018 | O4: Loan Interest (563/998) | Q4: ='Activities 3'!F33 -> 0 | S4: =Q4 -> 0 | AA4: =AB4+20000 -> 40032 | AB4: =M2 -> 20032 | AC4: =M5 -> 2018 | AD4: =Position!J$10 -> $0.00 | AE4: =Position!J$11 -> $0.00 | AF4: =Position!J$12 -> $0.00 | AG4: =Position!J$13 -> $0.00 | AH4: =Position!J$14 -> $0.00 | AI4: =Position!J$15 -> $0.00 | AJ4: =Position!J$16 -> $0.00 | AK4: =Position!J$17 -> $0.00 | AL4: =SUM(Position!J$20:J$24) -> $0.00 | AM4: =SUM(Position!J$27:J$30) -> $0.00 | AN4: $0.00 | AO4: =Position!J$33 -> $0.00 | AP4: =Position!J$36 -> $0.00 | AQ4: =Position!J$37 -> $0.00 | AR4: =Position!J$38 -> $0.00 | AS4: =Position!J$39 -> $0.00 | AT4: =Position!J$40 -> $0.00 | AU4: =Position!J$41 -> $0.00 | AV4: =Position!J$42 -> $0.00 | AW4: =Position!J$43 -> $0.00 | AX4: =Position!J$44 -> $0.00 | AY4: =Position!J$45 -> $0.00 | AZ4: =Position!J$48 -> $0.00 | BA4: =Position!J$50 -> $0.00 | BB4: ='Activities 1'!J$10 -> $0.00 | BC4: ='Activities 1'!J$11 -> $0.00 | BD4: ='Activities 1'!J$12 -> $0.00 | BE4: ='Activities 1'!J$13 -> $0.00 | BF4: ='Activities 1'!J$18 -> $0.00 | BG4: ='Activities 1'!J$19 -> $0.00 | BH4: ='Activities 1'!J$20 -> $0.00 | BI4: ='Activities 1'!J$21 -> $0.00 | BJ4: ='Activities 1'!J$22 -> $0.00 | BK4: ='Activities 1'!J$30 -> $0.00 | BL4: ='Activities 1'!J$31 -> $0.00 | BM4: ='Activities 1'!J$32 -> $0.00 | BN4: ='Activities 1'!J$33 -> $0.00 | BO4: ='Activities 1'!J$34 -> $0.00 | BP4: ='Activities 1'!J$35 -> $0.00 | BQ4: ='Activities 1'!J$36 -> $0.00 | BR4: ='Activities 1'!J$37 -> $0.00 | BS4: ='Activities 1'!J$38 -> $0.00 | BT4: ='Activities 1'!J$39 -> $0.00 | BU4: ='Activities 1'!J$40 -> $0.00 | BV4: ='Activities 1'!J$41 -> $0.00 | BW4: ='Activities 1'!J$42 -> $0.00 | BX4: ='Activities 1'!J$43 -> $0.00 | BY4: ='Activities 1'!J$44 -> $0.00 | BZ4: $0.00 | CA4: ='Activities 1'!J$45 -> $0.00 | CB4: ='Activities 1'!J$46 -> $0.00 | CC4: ='Activities 1'!J$47 -> $0.00 | CD4: ='Activities 1'!J$48 -> $0.00 | CE4: ='Activities 1'!J$49 -> $0.00 | CF4: ='Activities 1'!J$50 -> $0.00 | CG4: ='Activities 1'!J$51 -> $0.00 | CH4: ='Activities 1'!J$27 -> $0.00 | CI4: ='Activities 1'!J$54 -> $0.00 | CJ4: ='Activities 1'!J$56 -> $0.00 | CK4: ='Activities 2'!J$10 -> $0.00 | CL4: ='Activities 2'!J$11 -> $0.00 | CM4: ='Activities 2'!J$12 -> $0.00 | CN4: ='Activities 2'!J$13 -> $0.00 | CO4: ='Activities 2'!J$14 -> $0.00 | CP4: ='Activities 2'!J$15 -> $0.00 | CQ4: ='Activities 2'!J$16 -> $0.00 | CR4: ='Activities 2'!J$17 -> $0.00 | CS4: ='Activities 2'!J$18 -> $0.00 | CT4: ='Activities 2'!J$19 -> $0.00 | CU4: ='Activities 2'!J$20 -> $0.00 | CV4: ='Activities 2'!J$21 -> $0.00 | CW4: ='Activities 2'!J$22 -> $0.00 | CX4: ='Activities 2'!J$23 -> $0.00 | CY4: ='Activities 2'!J$29 -> $0.00 | CZ4: ='Activities 2'!J$30 -> $0.00 | DA4: ='Activities 2'!J$31 -> $0.00 | DB4: ='Activities 2'!J$32 -> $0.00 | DC4: ='Activities 2'!J$33 -> $0.00 | DD4: ='Activities 2'!J$34 -> $0.00 | DE4: ='Activities 2'!J$35 -> $0.00 | DF4: ='Activities 2'!J$36 -> $0.00 | DG4: ='Activities 2'!J$37 -> $0.00 | DH4: ='Activities 2'!J$43 -> $0.00 | DI4: ='Activities 2'!J$44 -> $0.00 | DJ4: ='Activities 2'!J$45 -> $0.00 | DK4: ='Activities 2'!J$46 -> $0.00 | DL4: ='Activities 2'!J$47 -> $0.00 | DM4: ='Activities 2'!J$48 -> $0.00 | DN4: ='Activities 2'!J$49 -> $0.00 | DO4: ='Activities 2'!J$50 -> $0.00 | DP4: ='Activities 2'!J$51 -> $0.00 | DQ4: ='Activities 2'!J$52 -> $0.00 | DR4: ='Activities 3'!J$10 -> $0.00 | DS4: $0.00 | DT4: ='Activities 3'!J$11 -> $0.00 | DU4: ='Activities 3'!J$12 -> $0.00 | DV4: ='Activities 3'!J$13 -> $0.00 | DW4: ='Activities 3'!J$14 -> $0.00 | DX4: ='Activities 3'!J$15 -> $0.00 | DY4: ='Activities 3'!J$16 -> $0.00 | DZ4: ='Activities 3'!J$22 -> $0.00 | EA4: ='Activities 3'!J$23 -> $0.00 | EB4: ='Activities 3'!J$24 -> $0.00 | EC4: ='Activities 3'!J$25 -> $0.00 | ED4: ='Activities 3'!J$26 -> $0.00 | EE4: ='Activities 3'!J$27 -> $0.00 | EF4: $0.00 | EG4: $0.00 | EH4: $0.00 | EI4: $0.00 | EJ4: $0.00 | EK4: $0.00 | EL4: ='Activities 3'!J$33 -> $0.00 | EM4: ='Activities 3'!J$34 -> $0.00 | EN4: ='Activities 3'!J$35 -> $0.00 | EO4: ='Activities 3'!J$36 -> $0.00 | EP4: ='Activities 3'!J$37 -> $0.00 | EQ4: ='Activities 3'!J$38 -> $0.00 | ER4: ='Activities 3'!J$39 -> $0.00 | ES4: ='Activities 3'!J$40 -> $0.00 | ET4: ='Activities 3'!J$41 -> $0.00 | EU4: ='Activities 3'!J$42 -> $0.00 | EV4: =SUM('Activities 3'!J$43:J$46) -> $0.00 | EW4: ='Activities 3'!J$30 -> $0.00 | EX4: ='Activities 2'!J$26 -> $0.00 | EY4: ='Activities 2'!J$40 -> $0.00 | EZ4: ='Activities 2'!J$55 -> $0.00 | FA4: ='Activities 3'!J$19 -> $0.00 | FB4: ='Activities 3'!J$49 -> $0.00 | FC4: ='Activities 3'!J$51 -> $0.00 | FD4: 0 | FE4: 0 | FF4: 0 | FG4: 0 | FH4: 0 | FI4: 0 | FJ4: 0 | FK4: 0 | FL4: 0 | FM4: 0 | FN4: 0 | FO4: 0 | FP4: 0 | FQ4: 0 | FR4: 0 | FS4: 0 | FT4: 0 | FU4: 0 | FV4: 0 | FW4: 0 | FX4: 0 | FY4: 0 | FZ4: ='Activities 3'!J$53 -> $0.00 | GA4: =$M$8 -> TRUE
M5: 2018
A6: Comments: | M6: =M5-1 -> 2017 | O6: School Enrollment | Z6: Enrollment Review: | AA6: ID | AB6: Parish_IDFK | AC6: FYE | AD6: 905C | AE6: 906C | AF6: 907C | AG6: 908C | AH6: 909C | AI6: 910C | AJ6: 911C | AK6: 912C | AL6: 913C | AM6: 914C | AN6: 915C | AO6: 916C | AP6: 917C | AQ6: 918C | AR6: 919C
C7: =IF(M8=FALSE,"PRELIMINARY: please address the errors noted below and resubmit the report.","FINAL: the report has been accepted.") -> FINAL: the report has been accepted. | M7: Final? | O7: Pre-K | Q7: =AD7 -> 0 | S7: 0
M8: TRUE | O8: Kindergarten | Q8: =AE7 -> 0 | S8: 0
O9: First | Q9: =AF7 -> 0 | S9: 0 | Z9: IMP Review: | AA9: ® ® ® ® ® ® ® ® ® ® ® ® ® ® ® ® ® ® ® ® ® ® ® ® ® ® ® ® ® ® ® ® ® ® ® ® ® ® ® ® ® ® ® ® ® ® ® ® ® ® ® ® ® ® ® ® ®
O10: Second | Q10: =AG7 -> 0 | S10: 0 | Z10: P&L / Assessment Review: | AA10: ID | AB10: Parish_IDFK | AC10: FYE | AD10: Bill_Type | AE10: Trans_Type | AF10: Invoice | AG10: Ref | AH10: Trans_Date | AI10: Amount | AK10: IMP Review: | AL10: ID | AM10: Parish_IDFK | AN10: FYE | AO10: Act_Type | AP10: Act_Num | AQ10: Trans_Date | AR10: Trans_Type | AS10: Amount
F11: DO NOT USE! | O11: Third | Q11: =AH7 -> 0 | S11: 0 | AA11: 20032 | AB11: 20032 | AC11: 2018 | AD11: AS | AE11: ARB | AF11: 17032AS | AG11: N/A | AH11: 2017-07-01 | AI11: $27,200.00
O12: Fourth | Q12: =AI7 -> 0 | S12: 0 | V12: LY 300: | W12: Unit | X12: Amount | AA12: 20032 | AB12: 20032 | AC12: 2018 | AD12: AS | AE12: BB | AF12: N/A | AG12: N/A | AH12: 2017-07-01 | AI12: $0.00
O13: Fifth | Q13: =AJ7 -> 0 | S13: 0 | W13: Church | X13: $582,712 | AA13: 20032 | AB13: 20032 | AC13: 2018 | AD13: AS | AE13: ARC | AF13: 17032AS | AG13: 3475 | AH13: 2017-10-05 | AI13: -$2,720.00
O14: Sixth | Q14: =AK7 -> 0 | S14: 0 | W14: School | AA14: 20032 | AB14: 20032 | AC14: 2018 | AD14: AS | AE14: ARC | AF14: 17032AS | AG14: 3508 | AH14: 2017-11-09 | AI14: -$2,720.00
O15: Seventh | Q15: =AL7 -> 0 | S15: 0 | W15: Cemetery | AA15: 20032 | AB15: 20032 | AC15: 2018 | AD15: AS | AE15: ARC | AF15: 17032AS | AG15: 3522 | AH15: 2017-12-06 | AI15: -$5,440.00
A16: Cover Page: | O16: Eighth | Q16: =AM7 -> 0 | S16: 0 | AA16: 20032 | AB16: 20032 | AC16: 2018 | AD16: AS | AE16: ARC | AF16: 17032AS | AG16: 3537 | AH16: 2018-01-08 | AI16: -$2,720.00
A17: 1) | C17: =IF(AND(Cover!G15>0,Cover!G17>0),"The Parish has provided the number of registered families and registered Catholics.",IF(AND(Cover!G15>0,Cover!G17=0),"The Parish has provided the number of registered families but not the number of registered Catholics.",IF(AND(Cover!G15=0,Cover!G17>0),"The Parish has provided the number of registered Catholics but not the number of registered families.","The Parish has not provided the number of registered Catholics or registered families."))) -> The Parish has not provided the number of registered Catholics or registered families. | K17: =IF(AND(Cover!G15>0,Cover!G17>0),"OK","Error") -> Error | O17: Ninth | Q17: 0 | S17: =AN8 -> 0 | W17: Total | X17: =SUM(X13:X15) -> $582,712 | AA17: 20032 | AB17: 20032 | AC17: 2018 | AD17: AS | AE17: ARC | AF17: 17032AS | AG17: 3549 | AH17: 2018-02-05 | AI17: -$2,720.00
M18: Acknowldegements? | O18: Tenth | Q18: 0 | S18: =AO8 -> 0 | AA18: 20032 | AB18: 20032 | AC18: 2018 | AD18: AS | AE18: ARM | AF18: 17032AS | AG18: N/A | AH18: 2018-02-16 | AI18: $4,100.00
A19: 2) | C19: =IF(M19=FALSE,"The Parish has not completed the acknowledgements on the cover of the report.","The Parish has submitted a report with signed acknowledgements.") -> The Parish has not completed the acknowledgements on the cover of the report. | K19: =IF(M19=FALSE,"Error","OK") -> Error | M19: FALSE | O19: Eleventh | Q19: 0 | S19: =AP8 -> 0 | AA19: 20032 | AB19: 20032 | AC19: 2018 | AD19: AS | AE19: ARC | AF19: 17032AS | AG19: 3561 | AH19: 2018-03-12 | AI19: -$2,720.00
O20: Twelfth | Q20: 0 | S20: =AQ8 -> 0 | AA20: 20032 | AB20: 20032 | AC20: 2018 | AD20: AS | AE20: ARC | AF20: 17032AS | AG20: 3575 | AH20: 2018-04-06 | AI20: -$2,720.00
A21: Assets: | M21: 102 | AA21: 20032 | AB21: 20032 | AC21: 2018 | AD21: AS | AE21: ARC | AF21: 17032AS | AG21: 3593 | AH21: 2018-05-08 | AI21: -$2,720.00
A22: 3) | C22: ="Line 102 (Diocesan Investment Mgmt. Program): "&IF(ABS(Position!L12-M22)<1,"the Parish reported "&TEXT(Position!L12,"$#,##0")&", which is in agreement with Diocesan records.","the Parish reported "&TEXT(Position!L12,"$#,##0")&", while Diocesan records indicate "&TEXT(M22,"$#,##0")&". The difference is "&TEXT(ABS(Position!L12-M22),"$#,##0")&".") -> Line 102 (Diocesan Investment Mgmt. Program): the Parish reported $0, which is in agreement with Diocesan records. | K22: =IF(ABS(Position!L12-M22)<1,"OK","Error") -> OK | M22: =S63 -> 0 | O22: Total | Q22: =SUM(Q7:Q21) -> 0 | S22: =SUM(S17:S21) -> 0 | AA22: 20032 | AB22: 20032 | AC22: 2018 | AD22: AS | AE22: ARC | AF22: 17032AS | AG22: 3604 | AH22: 2018-06-08 | AI22: -$2,720.00
AA23: 20032 | AB23: 20032 | AC23: 2018 | AD23: AS | AE23: ARC | AF23: 17032AS | AG23: 3613 | AH23: 2018-06-25 | AI23: -$4,100.00
AA24: 20032 | AB24: 20032 | AC24: 2018 | AD24: ESA | AE24: ARB | AF24: 17032ESA | AG24: N/A | AH24: 2017-07-01 | AI24: $9,300.00
A25: Liabilities: | M25: 201 | O25: Assessment Activity | AA25: 20032 | AB25: 20032 | AC25: 2018 | AD25: ESA | AE25: ARC | AF25: 17032ESA | AG25: 3475 | AH25: 2017-10-05 | AI25: -$930.00
A26: 4) | C26: ="Line 201 (Assessments Payable): "&IF(ABS(Position!L37-M26)<1,"the Parish reported "&TEXT(Position!L37,"$#,##0")&", which is in agreement with Diocesan records.","the Parish reported "&TEXT(Position!L37,"$#,##0")&", while Diocesan records indicate "&TEXT(M26,"$#,##0")&". The difference is "&TEXT(ABS(Position!L37-M26),"$#,##0")&".") -> Line 201 (Assessments Payable): the Parish reported $0, which is in agreement with Diocesan records. | K26: =IF(ABS(Position!L37-M26)<1,"OK","Error") -> OK | M26: =S44 -> 0 | O26: ="Assessment Billings @ 06/01/"&$M$5-2001&":" -> Assessment Billings @ 06/01/17: | AA26: 20032 | AB26: 20032 | AC26: 2018 | AD26: ESA | AE26: ARC | AF26: 17032ESA | AG26: 3508 | AH26: 2017-11-09 | AI26: -$930.00
O27: Regular Assessment (AS) | Q27: =SUMIFS($AI$11:$AI$60,$AD$11:$AD$60,"AS",$AE$11:$AE$60,"ARB")+SUMIFS($AI$11:$AI$60,$AD$11:$AD$60,"AS",$AE$11:$AE$60,"ARM") -> $31,300.00 | AA27: 20032 | AB27: 20032 | AC27: 2018 | AD27: ESA | AE27: ARC | AF27: 17032ESA | AG27: 3522 | AH27: 2017-12-06 | AI27: -$1,860.00
M28: 203 | O28: School Assessment (ESA) | Q28: =SUMIFS($AI$11:$AI$60,$AD$11:$AD$60,"ESA",$AE$11:$AE$60,"ARB")+SUMIFS($AI$11:$AI$60,$AD$11:$AD$60,"ESA",$AE$11:$AE$60,"ARM") -> 10,700.00 | AA28: 20032 | AB28: 20032 | AC28: 2018 | AD28: ESA | AE28: ARC | AF28: 17032ESA | AG28: 3537 | AH28: 2018-01-08 | AI28: -$930.00
A29: 5) | C29: ="Line 203 (Diocesan Loans Payable): "&IF(ABS(Position!L39-M29)<1,"the Parish reported "&TEXT(Position!L39,"$#,##0")&", which is in agreement with Diocesan records.","the Parish reported "&TEXT(Position!L39,"$#,##0")&", while Diocesan records indicate "&TEXT(M29,"$#,##0")&". The difference is "&TEXT(ABS(Position!L39-M29),"$#,##0")&".") -> Line 203 (Diocesan Loans Payable): the Parish reported $0, which is in agreement with Diocesan records. | K29: =IF(ABS(Position!L39-M29)<1,"OK","Error") -> OK | M29: =S65 -> 0 | O29: Rental Assessment (RA) | P29: + | Q29: =SUMIFS($AI$11:$AI$60,$AD$11:$AD$60,"RA",$AE$11:$AE$60,"ARB")+SUMIFS($AI$11:$AI$60,$AD$11:$AD$60,"RA",$AE$11:$AE$60,"ARM") -> 0 | AA29: 20032 | AB29: 20032 | AC29: 2018 | AD29: ESA | AE29: ARC | AF29: 17032ESA | AG29: 3549 | AH29: 2018-02-05 | AI29: -$930.00
AA30: 20032 | AB30: 20032 | AC30: 2018 | AD30: ESA | AE30: ARM | AF30: 17032ESA | AG30: N/A | AH30: 2018-02-16 | AI30: $1,400.00
M31: 206 | O31: Total Assessments Billed: | S31: =SUM(Q27:Q29) -> $42,000.00 | AA31: 20032 | AB31: 20032 | AC31: 2018 | AD31: ESA | AE31: ARC | AF31: 17032ESA | AG31: 3561 | AH31: 2018-03-12 | AI31: -$930.00
A32: 6) | C32: ="Line 206 (Insurance Payable): "&IF(Position!L42=M33,"the Parish reported "&TEXT(Position!L42,"$#,##0")&", which is in agreement with Diocesan records.","the Parish reported "&TEXT(Position!L42,"$#,##0")&", while Diocesan records indicate "&TEXT(M33,"$#,##0")&". The difference is "&TEXT(ABS(Position!L42-M33),"$#,##0")&".") -> Line 206 (Insurance Payable): the Parish reported $0, which is in agreement with Diocesan records. | K32: =IF(Position!L42=M33,"OK","Error") -> OK | M32: 2017 | AA32: 20032 | AB32: 20032 | AC32: 2018 | AD32: ESA | AE32: ARC | AF32: 17032ESA | AG32: 3575 | AH32: 2018-04-06 | AI32: -$930.00
M33: =IF(M32=M5,S56,S52) -> 0 | O33: ="Assessment BB @ 07/01/"&$M$5-2001&":" -> Assessment BB @ 07/01/17: | R33: + | S33: =SUMIFS($AI$11:$AI$60,$AD$11:$AD$60,"AS",$AE$11:$AE$60,"BB")+SUMIFS($AI$11:$AI$60,$AD$11:$AD$60,"ESA",$AE$11:$AE$60,"BB")+SUMIFS($AI$11:$AI$60,$AD$11:$AD$60,"RA",$AE$11:$AE$60,"BB") -> 0 | AA33: 20032 | AB33: 20032 | AC33: 2018 | AD33: ESA | AE33: ARC | AF33: 17032ESA | AG33: 3593 | AH33: 2018-05-08 | AI33: -$930.00
AA34: 20032 | AB34: 20032 | AC34: 2018 | AD34: ESA | AE34: ARC | AF34: 17032ESA | AG34: 3604 | AH34: 2018-06-08 | AI34: -$930.00
A35: Revenues: | M35: 420 | O35: Total Assessments Due: | S35: =SUM(S31:S34) -> $42,000.00 | AA35: 20032 | AB35: 20032 | AC35: 2018 | AD35: ESA | AE35: BB | AF35: N/A | AG35: N/A | AH35: 2018-06-25 | AI35: $0.00
A36: 7) | C36: ="Line 420 (IMP Interest Income): "&IF(ABS('Activities 1'!L30-M36)<1,"the Parish reported "&TEXT('Activities 1'!L30,"$#,##0")&", which is in agreement with Diocesan records.","the Parish reported "&TEXT('Activities 1'!L30,"$#,##0")&", while Diocesan records indicate "&TEXT(M36,"$#,##0")&". The difference is "&TEXT(ABS('Activities 1'!L30-M36),"$#,##0")&".") -> Line 420 (IMP Interest Income): the Parish reported $0, which is in agreement with Diocesan records. | K36: =IF(ABS('Activities 1'!L30-M36)<1,"OK","Error") -> OK | M36: =S61 -> 0 | AA36: 20032 | AB36: 20032 | AC36: 2018 | AD36: ESA | AE36: ARC | AF36: 17032ESA | AG36: 3613 | AH36: 2018-06-25 | AI36: -$1,400.00
O37: Less Assessment Payments | AA37: 20032 | AB37: 20032 | AC37: 2018 | AD37: P&L | AE37: BB | AF37: N/A | AG37: N/A | AH37: 2017-07-01 | AI37: $24,183.00
O38: Regular Assessment (AS) | Q38: =SUMIFS($AI$11:$AI$60,$AD$11:$AD$60,"AS",$AE$11:$AE$60,"ARC") -> $(31,300.00) | AA38: 20032 | AB38: 20032 | AC38: 2018 | AD38: P&L | AE38: ARC | AF38: 17032PL | AG38: 3473 | AH38: 2017-10-05 | AI38: -$2,418.30
A39: 8) | C39: ="Line 425 (Authorized Collections): "&IF(AND('Activities 1'!L32>0,M40=FALSE),"the Parish reported revenue, but has not received written approval from the Bishop. This revenue must be reported on Line 400 (Weekend Collections).",IF(AND('Activities 1'!L32>0,M40=TRUE),"the Parish has reported revenue which they were authorized by the Bishop to collect.","the Parish has not reported any revenue.")) -> Line 425 (Authorized Collections): the Parish has not reported any revenue. | K39: =IF(AND('Activities 1'!L32>0,M40=FALSE),"Error","OK") -> OK | M39: Authorization? | O39: School Assessment (ESA) | Q39: =SUMIFS($AI$11:$AI$60,$AD$11:$AD$60,"ESA",$AE$11:$AE$60,"ARC") -> (10,700.00) | AA39: 20032 | AB39: 20032 | AC39: 2018 | AD39: P&L | AE39: ARC | AF39: 17032PL | AG39: 3508 | AH39: 2017-11-09 | AI39: -$2,418.30
M40: FALSE | O40: Rental Assessment (RA) | P40: + | Q40: =SUMIFS($AI$11:$AI$60,$AD$11:$AD$60,"RA",$AE$11:$AE$60,"ARC") -> 0 | AA40: 20032 | AB40: 20032 | AC40: 2018 | AD40: P&L | AE40: ARC | AF40: 17032PL | AG40: 3522 | AH40: 2017-12-06 | AI40: -$4,836.60
M41: Lay Salaries | AA41: 20032 | AB41: 20032 | AC41: 2018 | AD41: P&L | AE41: ARC | AF41: 17032PL | AG41: 3537 | AH41: 2018-01-08 | AI41: -$2,418.30
A42: 9) | C42: ="Lines 444 (School Subsidy from Parish) & 540 (Parish School Subsidy): "&IF(AND('Activities 1'!H56=0,'Activities 3'!H51=0),"The Parish does not operate a School, and has not reported any subsidy revenue or expense.",IF('Activities 1'!H44='Activities 3'!F10,"The School reported subsidy revenue of "&TEXT('Activities 1'!H44,"$#,##0")&", which agrees with the subsidy expense reported by the Church.","The School reported subsidy revenue of "&TEXT('Activities 1'!H44,"$#,##0")&", while the Church reported "&TEXT('Activities 3'!F10,"$#,##0")&" of subsidy expense. The difference is "&TEXT(ABS('Activities 1'!H44-'Activities 3'!F10),"$#,##0")&".")) -> Lines 444 (School Subsidy from Parish) & 540 (Parish School Subsidy): The Parish does not operate a School, and has not reported any subsidy revenue or expense. | K42: =IF('Activities 1'!H44='Activities 3'!F10,"OK","Error") -> OK | M42: =SUM('Activities 2'!L13:L16) -> 0 | O42: Total Assessment Payments: | R42: + | S42: =SUM(Q38:Q40) -> $(42,000.00) | AA42: 20032 | AB42: 20032 | AC42: 2018 | AD42: P&L | AE42: ARC | AF42: 17032PL | AG42: 3549 | AH42: 2018-02-05 | AI42: -$2,418.30
M43: Expected FICA | AA43: 20032 | AB43: 20032 | AC43: 2018 | AD43: P&L | AE43: ARC | AF43: 17032PL | AG43: 3561 | AH43: 2018-03-12 | AI43: -$2,418.30
M44: =M42*0.0765 -> 0 | O44: ="Assessment Payable @ 06/30/"&$M$5-2000&":" -> Assessment Payable @ 06/30/18: | S44: =SUM(S35:S43) -> 0 | AA44: 20032 | AB44: 20032 | AC44: 2018 | AD44: P&L | AE44: ARC | AF44: 17032PL | AG44: 3575 | AH44: 2018-04-06 | AI44: -$2,418.30
A45: Expenses: | M45: reported FICA | AA45: 20032 | AB45: 20032 | AC45: 2018 | AD45: P&L | AE45: ARC | AF45: 17032PL | AG45: 3593 | AH45: 2018-05-08 | AI45: -$2,418.30
A46: 10) | C46: ="Line 506 (Social Security: Employer Portion): the Parish reported "&TEXT(M46,"$#,##0")&". The expected FICA expenses were "&TEXT(M44,"$#,##0")&" (Lay Salaries of "&TEXT(M42,"$#,##0")&" times the FICA rate of 7.65%). The amount reported"&IF((M46-M44)>5," exceeds the amount expected by "&TEXT(M46-M44,"$#,##0")&". Please provide an explanation.",IF((M44-M46)>(M44*0.1)," is "&TEXT(M44-M46,"$#,##0")&" ("&TEXT((M44-M46)/M44*100,"0")&"%) less than expected. Please provide an explanation."," is reasonable compared to expectations.")) -> Line 506 (Social Security: Employer Portion): the Parish reported $0. The expected FICA expenses were $0 (Lay Salaries of $0 times the FICA rate of 7.65%). The amount reported is reasonable compared to expectations. | K46: =IF('Activities 2'!L20-(SUM('Activities 2'!L13:L16)*0.0765)>1,"Error",IF((((SUM('Activities 2'!L13:L16)*0.0765)-'Activities 2'!L20)/IF(SUM('Activities 2'!L13:L16)=0,0.00000001,(SUM('Activities 2'!L13:L16)*0.0765)))>0.1,"Error","OK")) -> OK | M46: ='Activities 2'!L20 -> 0 | AA46: 20032 | AB46: 20032 | AC46: 2018 | AD46: P&L | AE46: ARB | AF46: 18032PL | AG46: N/A | AH46: 2018-06-01 | AI46: $24,693.00
O47: P&L Activity | AA47: 20032 | AB47: 20032 | AC47: 2018 | AD47: P&L | AE47: ARC | AF47: 17032PL | AG47: 3604 | AH47: 2018-06-08 | AI47: -$2,418.30
M48: 524 | O48: ="P&L Beginning Balance @ 07/01/"&$M$5-2001&":" -> P&L Beginning Balance @ 07/01/17: | S48: =SUMIFS($AI$11:$AI$60,$AD$11:$AD$60,"P&L",$AE$11:$AE$60,"BB") -> $24,183.00
M49: 2017
A50: 11) | C50: ="Line 524 (Insurance): the Parish reported "&TEXT('Activities 2'!L47,"$#,##0")&" of expenses, "&IF(ABS('Activities 2'!L47-M50)<1,"which is in agreement with Diocesan records.",IF(AND('Activities 2'!L47>M50,ABS('Activities 2'!L47-M50)<(M50*0.25)),"which slightly exceeds Diocesan records.",IF(AND('Activities 2'!L47>M50,ABS('Activities 2'!L47-M50)>(M50*0.25)),"which exceeds Diocesan records by "&TEXT('Activities 2'!L47-M50,"$#,##0")&" ("&TEXT(ABS('Activities 2'!L47-M50)/M50*100,"00")&"%).","which is "&TEXT(M50-'Activities 2'!L47,"$#,##0")&" less than the amount billed by the Diocese.")&" Please provide an explanation for the difference.")) -> Line 524 (Insurance): the Parish reported $0 of expenses, which is $24,183 less than the amount billed by the Diocese. Please provide an explanation for the difference. | K50: =IF('Activities 2'!L47<M50,"Error",IF(ABS('Activities 2'!L47-M50)>(M50*0.25),"Error","OK")) -> Error | M50: =IF(M49=M5,S54,S48) -> $24,183 | O50: Less P&L Payments: | R50: - | S50: =SUMIFS($AI$11:$AI$60,$AD$11:$AD$60,"P&L",$AE$11:$AE$60,"ARC") -> (24,183.00)
M51: 2
M52: 564 | O52: ="FYE "&M5-1&" P&L Payable @ 06/30/"&$M$5-2000&":" -> FYE 2017 P&L Payable @ 06/30/18: | S52: =SUM(S48:S51) -> 0
A53: 12) | C53: ="Line 564 (Diocesan Assessments): the Parish reported "&TEXT('Activities 3'!L34,"$#,##0")&" of expenses, "&IF('Activities 3'!L34=M53,"which is in agreement with Diocesan records.","while Diocesan records indicate "&TEXT(M53,"$#,##0")&". The difference is "&TEXT(ABS('Activities 3'!L34-M53),"$#,##0")&".") -> Line 564 (Diocesan Assessments): the Parish reported $0 of expenses, while Diocesan records indicate $42,000. The difference is $42,000. | K53: =IF('Activities 3'!L34=M53,"OK","Error") -> Error | M53: =S31 -> $42,000
O54: ="Total "&$M$5&" P&L Billed on 06/01/"&$M$5-2000&":" -> Total 2018 P&L Billed on 06/01/18: | R54: + | S54: =SUMIFS($AI$11:$AI$60,$AD$11:$AD$60,"P&L",$AE$11:$AE$60,"ARB") -> 24,693.00
A56: Schedule 8: | M56: LY_300 | O56: ="P&L Balance at 06/30/"&M5-2000&":" -> P&L Balance at 06/30/18: | S56: =SUM(S52:S55) -> $24,693.00
A57: 13) | C57: Line 300 (Net Assets): the Parish reported 2018-2019 Ending New Assets totalling $0, while the Statement of Position submitted last year reports New Assets of $0. The difference is $0. | K57: =IF(ABS('Sch. 8'!L46-M57)<1,"OK","Error") -> Error | M57: =X17 -> $582,712
O59: IMP Activity
A60: Disclosures: | M60: Net Asset Auth?
A61: 14) | C61: =IF(M61=TRUE,"Adjustments were necessary to bring the Net Asset Roll-Forward into balance. Pastor/Administrator Authorization is on file.",IF(AND(AND(Disclosures!V16>=-2,Disclosures!V16<=2),AND(Disclosures!X16>=-2,Disclosures!X16<=2),AND(Disclosures!Z16>=-2,Disclosures!Z16<=2)),"The Net Asset Roll-Forward is in balance.","The Net Asset Roll-Forward is out of balance. Please review, correct, and resubmit your statement.")) -> The Net Asset Roll-Forward is in balance. | K61: =IF(M61=TRUE,"OK",IF(AND(AND(Disclosures!V16>=-2,Disclosures!V16<=2),AND(Disclosures!X16>=-2,Disclosures!X16<=2),AND(Disclosures!Z16>=-2,Disclosures!Z16<=2)),"OK","Error")) -> OK | M61: FALSE | O61: ="IMP Interest Revenue FYE 06/30/"&$M$5-2000&":" -> IMP Interest Revenue FYE 06/30/18: | S61: =SUMIFS($AS$11:$AS$70,$AO$11:$AO$70,"DEP",$AR$11:$AR$70,"I") -> 0 | AA61: 20034 | AB61: 20034 | AC61: 2018 | AD61: ESA | AE61: ARC | AF61: 17034ESA | AG61: 11215 | AH61: 2017-11-20 | AI61: ($400.00)
AA62: 20034 | AB62: 20034 | AC62: 2018 | AD62: ESA | AE62: ARC | AF62: 17034ESA | AG62: 11222 | AH62: 2017-12-15 | AI62: ($400.00)
O63: ="IMP Deposit Balance @ 06/01/"&$M$5-2000&":" -> IMP Deposit Balance @ 06/01/18: | S63: =SUMIFS($AS$11:$AS$70,$AO$11:$AO$70,"DEP",$AR$11:$AR$70,"B") -> 0 | AA63: 20034 | AB63: 20034 | AC63: 2018 | AD63: ESA | AE63: ARC | AF63: 17034ESA | AG63: 11228 | AH63: 2017-12-15 | AI63: ($400.00)
C64: ="Line 102 (Stipends Payable) reports $"&TEXT(Position!F40,"#,##0")&" while the Stipend bank account on Line 3 of Sch. 1 reports $"&TEXT('Sch. 1'!J12,"#,##0")&". Why?" -> Line 102 (Stipends Payable) reports $0 while the Stipend bank account on Line 3 of Sch. 1 reports $0. Why? | AA64: 20034 | AB64: 20034 | AC64: 2018 | AD64: ESA | AE64: ARC | AF64: 17034ESA | AG64: 11264 | AH64: 2018-01-02 | AI64: ($400.00)
O65: ="IMP Loan Balance @ 06/30/"&$M$5-2000&":" -> IMP Loan Balance @ 06/30/18: | S65: =SUMIFS($AS$11:$AS$70,$AO$11:$AO$70,"LOAN",$AR$11:$AR$70,"B") -> 0 | AA65: 20034 | AB65: 20034 | AC65: 2018 | AD65: ESA | AE65: ARC | AF65: 17034ESA | AG65: 11275 | AH65: 2018-01-11 | AI65: ($400.00)
AA66: 20034 | AB66: 20034 | AC66: 2018 | AD66: ESA | AE66: ARC | AF66: 17034ESA | AG66: 11290 | AH66: 2018-01-11 | AI66: ($400.00)
AA67: 20034 | AB67: 20034 | AC67: 2018 | AD67: ESA | AE67: ARC | AF67: 17034ESA | AG67: 11306 | AH67: 2018-01-22 | AI67: ($400.00)
AA68: 20034 | AB68: 20034 | AC68: 2018 | AD68: ESA | AE68: ARC | AF68: 17034ESA | AG68: 11326 | AH68: 2018-01-29 | AI68: ($400.00)
AA69: 20034 | AB69: 20034 | AC69: 2018 | AD69: ESA | AE69: ARC | AF69: 17034ESA | AG69: 11346 | AH69: 2018-02-08 | AI69: ($400.00)
AA70: 20034 | AB70: 20034 | AC70: 2018 | AD70: ESA | AE70: ARM | AF70: 17034ESA | AG70: N/A | AH70: 2018-02-16 | AI70: ($3,200.00)
AA71: 20034 | AB71: 20034 | AC71: 2018 | AD71: ESA | AE71: ARM | AF71: 17034ESA | AG71: N/A | AH71: 2018-02-16 | AI71: $1,800.00
AA72: 20034 | AB72: 20034 | AC72: 2018 | AD72: ESA | AE72: ARC | AF72: 17034ESA | AG72: 11442 | AH72: 2018-04-19 | AI72: ($2,400.00)
AA73: 20034 | AB73: 20034 | AC73: 2018 | AD73: ESA | AE73: ARC | AF73: 17034ESA | AG73: 11456 | AH73: 2018-04-23 | AI73: ($400.00)
AA74: 20034 | AB74: 20034 | AC74: 2018 | AD74: ESA | AE74: ARC | AF74: 17034ESA | AG74: 11462 | AH74: 2018-05-02 | AI74: ($400.00)
AA75: 20034 | AB75: 20034 | AC75: 2018 | AD75: ESA | AE75: ARC | AF75: 17034ESA | AG75: 11475 | AH75: 2018-05-09 | AI75: ($400.00)
AA76: 20034 | AB76: 20034 | AC76: 2018 | AD76: ESA | AE76: ARC | AF76: 17034ESA | AG76: 11489 | AH76: 2018-05-24 | AI76: ($400.00)
AA77: 20034 | AB77: 20034 | AC77: 2018 | AD77: ESA | AE77: ARC | AF77: 17034ESA | AG77: 11498 | AH77: 2018-05-24 | AI77: ($400.00)
AA78: 20034 | AB78: 20034 | AC78: 2018 | AD78: ESA | AE78: ARC | AF78: 17034ESA | AG78: 11507 | AH78: 2018-06-01 | AI78: ($400.00)
AA79: 20034 | AB79: 20034 | AC79: 2018 | AD79: ESA | AE79: ARC | AF79: 17034ESA | AG79: 11512 | AH79: 2018-06-07 | AI79: ($400.00)
AA80: 20034 | AB80: 20034 | AC80: 2018 | AD80: ESA | AE80: ARC | AF80: 17034ESA | AG80: 11531 | AH80: 2018-06-13 | AI80: ($276.00)
AA81: 20034 | AB81: 20034 | AC81: 2018 | AD81: P&L | AE81: BB | AF81: N/A | AG81: N/A | AH81: 2017-07-01 | AI81: $16,536.00
AA82: 20034 | AB82: 20034 | AC82: 2018 | AD82: P&L | AE82: ARC | AF82: 16034PL | AG82: 11000 | AH82: 2017-07-03 | AI82: ($426.00)
AA83: 20034 | AB83: 20034 | AC83: 2018 | AD83: P&L | AE83: ARC | AF83: 17034PL | AG83: Var | AH83: 2017-07-03 | AI83: ($375.00)
AA84: 20034 | AB84: 20034 | AC84: 2018 | AD84: P&L | AE84: ARC | AF84: 17034PL | AG84: 11019 | AH84: 2017-07-20 | AI84: ($400.00)
AA85: 20034 | AB85: 20034 | AC85: 2018 | AD85: P&L | AE85: ARC | AF85: 17034PL | AG85: 11030 | AH85: 2017-07-28 | AI85: ($400.00)
AA86: 20034 | AB86: 20034 | AC86: 2018 | AD86: P&L | AE86: ARC | AF86: 17034PL | AG86: 11036 | AH86: 2017-08-03 | AI86: ($400.00)
AA87: 20034 | AB87: 20034 | AC87: 2018 | AD87: P&L | AE87: ARC | AF87: 17034PL | AG87: 11057 | AH87: 2017-08-28 | AI87: ($400.00)
AA88: 20034 | AB88: 20034 | AC88: 2018 | AD88: P&L | AE88: ARC | AF88: 17034PL | AG88: 11112 | AH88: 2017-09-28 | AI88: ($400.00)
AA89: 20034 | AB89: 20034 | AC89: 2018 | AD89: P&L | AE89: ARC | AF89: 17034PL | AG89: 11137 | AH89: 2017-10-13 | AI89: ($400.00)
AA90: 20034 | AB90: 20034 | AC90: 2018 | AD90: P&L | AE90: ARC | AF90: 17034PL | AG90: 11149 | AH90: 2017-10-17 | AI90: ($400.00)
AA91: 20034 | AB91: 20034 | AC91: 2018 | AD91: P&L | AE91: ARC | AF91: 17034PL | AG91: 11161 | AH91: 2017-11-01 | AI91: ($400.00)
AA92: 20034 | AB92: 20034 | AC92: 2018 | AD92: P&L | AE92: ARC | AF92: 17034PL | AG92: 11176 | AH92: 2017-11-01 | AI92: ($400.00)
AA93: 20034 | AB93: 20034 | AC93: 2018 | AD93: P&L | AE93: ARC | AF93: 17034PL | AG93: 11201 | AH93: 2017-11-14 | AI93: ($400.00)
AA94: 20034 | AB94: 20034 | AC94: 2018 | AD94: P&L | AE94: ARC | AF94: 17034PL | AG94: 11189 | AH94: 2017-11-14 | AI94: ($400.00)
AA95: 20034 | AB95: 20034 | AC95: 2018 | AD95: P&L | AE95: ARC | AF95: 17034PL | AG95: 11214 | AH95: 2017-11-20 | AI95: ($400.00)
AA96: 20034 | AB96: 20034 | AC96: 2018 | AD96: P&L | AE96: ARC | AF96: 17034PL | AG96: 11227 | AH96: 2017-12-15 | AI96: ($400.00)
AA97: 20034 | AB97: 20034 | AC97: 2018 | AD97: P&L | AE97: ARC | AF97: 17034PL | AG97: 11221 | AH97: 2017-12-15 | AI97: ($400.00)
AA98: 20034 | AB98: 20034 | AC98: 2018 | AD98: P&L | AE98: ARC | AF98: 17034PL | AG98: 11263 | AH98: 2018-01-02 | AI98: ($400.00)
AA99: 20034 | AB99: 20034 | AC99: 2018 | AD99: P&L | AE99: ARC | AF99: 17034PL | AG99: 11274 | AH99: 2018-01-11 | AI99: ($400.00)
AA100: 20034 | AB100: 20034 | AC100: 2018 | AD100: P&L | AE100: ARC | AF100: 17034PL | AG100: 11289 | AH100: 2018-01-11 | AI100: ($400.00)
AA101: 20034 | AB101: 20034 | AC101: 2018 | AD101: P&L | AE101: ARC | AF101: 17034PL | AG101: 11305 | AH101: 2018-01-22 | AI101: ($400.00)
AA102: 20034 | AB102: 20034 | AC102: 2018 | AD102: P&L | AE102: ARC | AF102: 17034PL | AG102: 11325 | AH102: 2018-01-29 | AI102: ($400.00)
AA103: 20034 | AB103: 20034 | AC103: 2018 | AD103: P&L | AE103: ARC | AF103: 17034PL | AG103: 11345 | AH103: 2018-02-08 | AI103: ($400.00)
AA104: 20034 | AB104: 20034 | AC104: 2018 | AD104: P&L | AE104: ARM | AF104: 17034PL | AG104: ADJ | AH104: 2018-03-06 | AI104: $1,801.00
AA105: 20034 | AB105: 20034 | AC105: 2018 | AD105: P&L | AE105: ARC | AF105: 17034PL | AG105: 11441 | AH105: 2018-04-19 | AI105: ($2,400.00)
AA106: 20034 | AB106: 20034 | AC106: 2018 | AD106: P&L | AE106: ARC | AF106: 17034PL | AG106: 11455 | AH106: 2018-04-23 | AI106: ($400.00)
AA107: 20034 | AB107: 20034 | AC107: 2018 | AD107: P&L | AE107: ARC | AF107: 17034PL | AG107: 11461 | AH107: 2018-05-02 | AI107: ($400.00)
AA108: 20034 | AB108: 20034 | AC108: 2018 | AD108: P&L | AE108: ARC | AF108: 17034PL | AG108: 11474 | AH108: 2018-05-09 | AI108: ($400.00)
AA109: 20034 | AB109: 20034 | AC109: 2018 | AD109: P&L | AE109: ARC | AF109: 17034PL | AG109: 11497 | AH109: 2018-05-24 | AI109: ($400.00)
AA110: 20034 | AB110: 20034 | AC110: 2018 | AD110: P&L | AE110: ARC | AF110: 17034PL | AG110: 11488 | AH110: 2018-05-24 | AI110: ($400.00)
AA111: 20034 | AB111: 20034 | AC111: 2018 | AD111: P&L | AE111: ARB | AF111: 18034PL | AG111: N/A | AH111: 2018-06-01 | AI111: $18,194.00
AA112: 20034 | AB112: 20034 | AC112: 2018 | AD112: P&L | AE112: ARC | AF112: 17034PL | AG112: 11506 | AH112: 2018-06-01 | AI112: ($400.00)
AA113: 20034 | AB113: 20034 | AC113: 2018 | AD113: P&L | AE113: ARC | AF113: 17034PL | AG113: 11511 | AH113: 2018-06-07 | AI113: ($400.00)
AA114: 20034 | AB114: 20034 | AC114: 2018 | AD114: P&L | AE114: ARC | AF114: 17034PL | AG114: 11530 | AH114: 2018-06-13 | AI114: ($400.00)
AA115: 20034 | AB115: 20034 | AC115: 2018 | AD115: P&L | AE115: ARC | AF115: 17034PL | AG115: 11541 | AH115: 2018-06-18 | AI115: ($600.00)
AA116: 20034 | AB116: 20034 | AC116: 2018 | AD116: P&L | AE116: ARC | AF116: 17034PL | AG116: 11548 | AH116: 2018-06-28 | AI116: ($600.00)

Sheet Accounting_Review_2

Sheet Adjustments

Sheet IMP_Interest
